﻿,Portfolio,Expense Area,Cost Centre,Expense Type,Account Code,Amount,Supplier Name,SupplierId,Pay Date,Transaction No.,,VAT No.,Co. Reg. No.,VAT No.,Voucher Type,£,Trans Date
INSERTED DETAIL,Environment and Public Realm,WSU Depot,WDP00,Materials,303,485.8,Arco Limited,100015,18/02/2021,10289976,TC,,133804,166911546,PI,582.96,44215
INSERTED DETAIL,Corporate Resources,Corporate Property R&M,CPA01,R&M External Contractors,100,485.8,Arco Limited,100015,18/02/2021,10290060,TC,,133804,166911546,PI,582.96,44217
INSERTED DETAIL,Environment and Public Realm,WSU Depot,WDP00,Materials,303,359.6,Arco Limited,100015,18/02/2021,10290114,TC,,133804,166911546,PI,976.1,44221
INSERTED DETAIL,Environment and Public Realm,Domestic Waste Collection/Recycling,REF00,Personal Protective Equipment,306,56.68,Arco Limited,100015,18/02/2021,10290114,TC,,133804,166911546,PI,976.1,44221
INSERTED DETAIL,Environment and Public Realm,Street Cleansing General,STC00,Personal Protective Equipment,306,15.14,Arco Limited,100015,18/02/2021,10290114,TC,,133804,166911546,PI,976.1,44221
INSERTED DETAIL,Environment and Public Realm,Trade Waste Collection,WWC01,Personal Protective Equipment,306,3.78,Arco Limited,100015,18/02/2021,10290114,TC,,133804,166911546,PI,976.1,44221
INSERTED DETAIL,Environment and Public Realm,Domestic Waste Collection/Recycling,REF00,Personal Protective Clothing,340,53.56,Arco Limited,100015,18/02/2021,10290114,TC,,133804,166911546,PI,976.1,44221
INSERTED DETAIL,Environment and Public Realm,WSU Depot,WDP00,Personal Protective Clothing,340,324.66,Arco Limited,100015,18/02/2021,10290114,TC,,133804,166911546,PI,976.1,44221
INSERTED DETAIL,Environment and Public Realm,Domestic Waste Collection/Recycling,REF00,Contract Hire,220,1012,Sunbelt Rentals Ltd,100017,04/02/2021,10289640,TC,,444569,209568737,PI,1214.4,44202
INSERTED DETAIL,Environment and Public Realm,Domestic Waste Collection/Recycling,REF00,Contract Hire,220,1012,Sunbelt Rentals Ltd,100017,04/02/2021,10289641,TC,,444569,209568737,PI,1214.4,44202
INSERTED DETAIL,Communities and Homes,CAST - HRA Property Rental,CAS02,R&M External Contractors,100,205.86,AWM Electrical Service Group Ltd,100051,04/02/2021,10290215,CS,,7430696,661675907,PN,5926.92,44223
INSERTED DETAIL,Communities and Homes,CAST - Private Sector Leasing,CAS03,R&M External Contractors,100,130.16,AWM Electrical Service Group Ltd,100051,04/02/2021,10290215,CS,,7430696,661675907,PN,5926.92,44223
INSERTED DETAIL,Housing Revenue Account,Electrical maintenance,UMR10,R&M External Contractors,100,4177.49,AWM Electrical Service Group Ltd,100051,04/02/2021,10290215,CS,,7430696,661675907,PN,5926.92,44223
INSERTED DETAIL,Housing Revenue Account,Smoke alarm replacements,UMR18,R&M External Contractors,100,293.25,AWM Electrical Service Group Ltd,100051,04/02/2021,10290215,CS,,7430696,661675907,PN,5926.92,44223
INSERTED DETAIL,Housing Revenue Account,Repairs and Maintenance - rechargeable works,UMR20,R&M External Contractors,100,132.34,AWM Electrical Service Group Ltd,100051,04/02/2021,10290215,CS,,7430696,661675907,PN,5926.92,44223
INSERTED DETAIL,Communities and Homes,CAST - Private Sector Leasing,CAS03,R&M External Contractors,100,50.28,AWM Electrical Service Group Ltd,100051,04/02/2021,10290217,CS,,7430696,661675907,PN,838.69,44223
INSERTED DETAIL,Housing Revenue Account,Electrical maintenance,UMR10,R&M External Contractors,100,274.45,AWM Electrical Service Group Ltd,100051,04/02/2021,10290217,CS,,7430696,661675907,PN,838.69,44223
INSERTED DETAIL,Housing Revenue Account,Miscellaneous Unplanned Maintenance and Repair,UMR17,R&M External Contractors,100,22.28,AWM Electrical Service Group Ltd,100051,04/02/2021,10290217,CS,,7430696,661675907,PN,838.69,44223
INSERTED DETAIL,Housing Revenue Account,Smoke alarm replacements,UMR18,R&M External Contractors,100,351.89,AWM Electrical Service Group Ltd,100051,04/02/2021,10290217,CS,,7430696,661675907,PN,838.69,44223
INSERTED DETAIL,Housing Revenue Account,Electrical maintenance,UMR10,R&M External Contractors,100,852.98,AWM Electrical Service Group Ltd,100051,04/02/2021,10290218,CS,,7430696,661675907,PN,1446.86,44223
INSERTED DETAIL,Housing Revenue Account,Smoke alarm replacements,UMR18,R&M External Contractors,100,352.74,AWM Electrical Service Group Ltd,100051,04/02/2021,10290218,CS,,7430696,661675907,PN,1446.86,44223
INSERTED DETAIL,Housing Revenue Account,Repairs and Maintenance - Void works,UMR09,R&M External Contractors,100,2029.29,AWM Electrical Service Group Ltd,100051,04/02/2021,10290219,CS,,7430696,661675907,PN,2435.15,44223
INSERTED DETAIL,Housing Revenue Account,Electrical maintenance,UMR10,R&M External Contractors,100,3241.44,AWM Electrical Service Group Ltd,100051,04/02/2021,10290220,CS,,7430696,661675907,PN,4690.64,44223
INSERTED DETAIL,Housing Revenue Account,Smoke alarm replacements,UMR18,R&M External Contractors,100,667.43,AWM Electrical Service Group Ltd,100051,04/02/2021,10290220,CS,,7430696,661675907,PN,4690.64,44223
INSERTED DETAIL,Housing Revenue Account,Repairs and Maintenance - Void works,UMR09,R&M External Contractors,100,82.9,AWM Electrical Service Group Ltd,100051,04/02/2021,10290313,CS,,7430696,661675907,PN,3564.26,44228
INSERTED DETAIL,Capital Housing Revenue Account,Rewiring,HCE20,Capital Contract Payments,5000,2887.32,AWM Electrical Service Group Ltd,100051,04/02/2021,10290313,CS,,7430696,661675907,PN,3564.26,44228
INSERTED DETAIL,Housing Revenue Account,Repairs and Maintenance - Void works,UMR09,R&M External Contractors,100,867.06,AWM Electrical Service Group Ltd,100051,11/02/2021,10290354,CS,,7430696,661675907,PN,4692.83,44229
INSERTED DETAIL,Capital Housing Revenue Account,Rewiring,HCE20,Capital Contract Payments,5000,3043.63,AWM Electrical Service Group Ltd,100051,11/02/2021,10290354,CS,,7430696,661675907,PN,4692.83,44229
INSERTED DETAIL,Capital Housing Revenue Account,Rewiring,HCE20,Capital Contract Payments,5000,2176.09,AWM Electrical Service Group Ltd,100051,11/02/2021,10290484,CS,,7430696,661675907,PN,2611.31,44231
INSERTED DETAIL,Communities and Homes,CAST - Private Sector Leasing,CAS03,R&M External Contractors,100,220.62,AWM Electrical Service Group Ltd,100051,11/02/2021,10290485,CS,,7430696,661675907,PN,1552.75,44231
INSERTED DETAIL,Housing Revenue Account,Repairs and Maintenance - Void works,UMR09,R&M External Contractors,100,1073.34,AWM Electrical Service Group Ltd,100051,11/02/2021,10290485,CS,,7430696,661675907,PN,1552.75,44231
INSERTED DETAIL,Communities and Homes,CAST - Private Sector Leasing,CAS03,R&M External Contractors,100,114.19,AWM Electrical Service Group Ltd,100051,11/02/2021,10290486,CS,,7430696,661675907,PN,4883.58,44231
INSERTED DETAIL,Housing Revenue Account,Electrical maintenance,UMR10,R&M External Contractors,100,2982.91,AWM Electrical Service Group Ltd,100051,11/02/2021,10290486,CS,,7430696,661675907,PN,4883.58,44231
INSERTED DETAIL,Housing Revenue Account,Smoke alarm replacements,UMR18,R&M External Contractors,100,972.55,AWM Electrical Service Group Ltd,100051,11/02/2021,10290486,CS,,7430696,661675907,PN,4883.58,44231
INSERTED DETAIL,Housing Revenue Account,Electrical maintenance,UMR10,R&M External Contractors,100,182.58,AWM Electrical Service Group Ltd,100051,11/02/2021,10290487,CS,,7430696,661675907,PN,626.68,44231
INSERTED DETAIL,Housing Revenue Account,Smoke alarm replacements,UMR18,R&M External Contractors,100,339.65,AWM Electrical Service Group Ltd,100051,11/02/2021,10290487,CS,,7430696,661675907,PN,626.68,44231
INSERTED DETAIL,Housing Revenue Account,Gas Heating Systems,UMR01,R&M External Contractors,100,44.56,AWM Electrical Service Group Ltd,100051,11/02/2021,10290488,CS,,7430696,661675907,PN,3678.13,44231
INSERTED DETAIL,Housing Revenue Account,Electrical maintenance,UMR10,R&M External Contractors,100,2199.45,AWM Electrical Service Group Ltd,100051,11/02/2021,10290488,CS,,7430696,661675907,PN,3678.13,44231
INSERTED DETAIL,Housing Revenue Account,Smoke alarm replacements,UMR18,R&M External Contractors,100,821.1,AWM Electrical Service Group Ltd,100051,11/02/2021,10290488,CS,,7430696,661675907,PN,3678.13,44231
INSERTED DETAIL,Housing Revenue Account,Electrical maintenance,UMR10,R&M External Contractors,100,2256.18,AWM Electrical Service Group Ltd,100051,11/02/2021,10290596,CS,,7430696,661675907,PN,3059.65,44235
INSERTED DETAIL,Housing Revenue Account,Smoke alarm replacements,UMR18,R&M External Contractors,100,293.53,AWM Electrical Service Group Ltd,100051,11/02/2021,10290596,CS,,7430696,661675907,PN,3059.65,44235
INSERTED DETAIL,Communities and Homes,CAST - Private Sector Leasing,CAS03,R&M External Contractors,100,60.62,AWM Electrical Service Group Ltd,100051,18/02/2021,10290717,CS,,7430696,661675907,PN,1153.02,44237
INSERTED DETAIL,Housing Revenue Account,Repairs and Maintenance - Void works,UMR09,R&M External Contractors,100,532.52,AWM Electrical Service Group Ltd,100051,18/02/2021,10290717,CS,,7430696,661675907,PN,1153.02,44237
INSERTED DETAIL,Capital Housing Revenue Account,Purchase of Council Houses,PUR00,Capital Contract Payments,5000,367.71,AWM Electrical Service Group Ltd,100051,18/02/2021,10290717,CS,,7430696,661675907,PN,1153.02,44237
INSERTED DETAIL,Capital Housing Revenue Account,Purchase of Council Houses,PUR00,Capital Contract Payments,5000,1440.28,AWM Electrical Service Group Ltd,100051,18/02/2021,10290788,CS,,7430696,661675907,PN,1728.34,44239
INSERTED DETAIL,Housing Revenue Account,Repairs and Maintenance - Void works,UMR09,R&M External Contractors,100,111.05,AWM Electrical Service Group Ltd,100051,18/02/2021,10290789,CS,,7430696,661675907,PN,5613.88,44239
INSERTED DETAIL,Housing Revenue Account,Electrical maintenance,UMR10,R&M External Contractors,100,4391.23,AWM Electrical Service Group Ltd,100051,18/02/2021,10290789,CS,,7430696,661675907,PN,5613.88,44239
INSERTED DETAIL,Housing Revenue Account,Smoke alarm replacements,UMR18,R&M External Contractors,100,175.95,AWM Electrical Service Group Ltd,100051,18/02/2021,10290789,CS,,7430696,661675907,PN,5613.88,44239
INSERTED DETAIL,Housing Revenue Account,Electrical maintenance,UMR10,R&M External Contractors,100,5196.56,AWM Electrical Service Group Ltd,100051,18/02/2021,10290790,CS,,7430696,661675907,PN,6937.66,44239
INSERTED DETAIL,Housing Revenue Account,Smoke alarm replacements,UMR18,R&M External Contractors,100,584.82,AWM Electrical Service Group Ltd,100051,18/02/2021,10290790,CS,,7430696,661675907,PN,6937.66,44239
INSERTED DETAIL,Housing Revenue Account,Electrical maintenance,UMR10,R&M External Contractors,100,3235.59,AWM Electrical Service Group Ltd,100051,18/02/2021,10290791,CS,,7430696,661675907,PN,4516.13,44239
INSERTED DETAIL,Housing Revenue Account,Smoke alarm replacements,UMR18,R&M External Contractors,100,527.85,AWM Electrical Service Group Ltd,100051,18/02/2021,10290791,CS,,7430696,661675907,PN,4516.13,44239
INSERTED DETAIL,Housing Revenue Account,Electrical maintenance,UMR10,R&M External Contractors,100,1101.93,AWM Electrical Service Group Ltd,100051,18/02/2021,10290792,CS,,7430696,661675907,PN,1463.08,44239
INSERTED DETAIL,Housing Revenue Account,Smoke alarm replacements,UMR18,R&M External Contractors,100,117.3,AWM Electrical Service Group Ltd,100051,18/02/2021,10290792,CS,,7430696,661675907,PN,1463.08,44239
INSERTED DETAIL,Housing Revenue Account,Electrical maintenance,UMR10,R&M External Contractors,100,3157.86,AWM Electrical Service Group Ltd,100051,25/02/2021,10291028,CS,,7430696,661675907,PN,4448.87,44249
INSERTED DETAIL,Housing Revenue Account,Smoke alarm replacements,UMR18,R&M External Contractors,100,410.55,AWM Electrical Service Group Ltd,100051,25/02/2021,10291028,CS,,7430696,661675907,PN,4448.87,44249
INSERTED DETAIL,Housing Revenue Account,Repairs and Maintenance - rechargeable works,UMR20,R&M External Contractors,100,22.28,AWM Electrical Service Group Ltd,100051,25/02/2021,10291028,CS,,7430696,661675907,PN,4448.87,44249
INSERTED DETAIL,Capital Housing Revenue Account,Patterdale sheltered scheme improvements,HPS00,Capital Contract Payments,5000,116.7,AWM Electrical Service Group Ltd,100051,25/02/2021,10291028,CS,,7430696,661675907,PN,4448.87,44249
INSERTED DETAIL,Housing Revenue Account,Miscellaneous Unplanned Maintenance and Repair,UMR17,R&M External Contractors,100,288.2,A C E Carpentry & Joinery Contractors Ltd,100085,04/02/2021,10290127,CS,,4120783,729422428,PN,7524.05,44221
INSERTED DETAIL,Capital Housing Revenue Account,Fire Risk Prevention Works,HCE18,Capital Contract Payments,5000,5981.84,A C E Carpentry & Joinery Contractors Ltd,100085,04/02/2021,10290127,CS,,4120783,729422428,PN,7524.05,44221
INSERTED DETAIL,Communities and Homes,CAST - Private Sector Leasing,CAS03,R&M External Contractors,100,1809,A C E Carpentry & Joinery Contractors Ltd,100085,18/02/2021,10290716,CS,,4120783,729422428,PN,2170.8,44237
INSERTED DETAIL,Environment and Public Realm,Parks,PKS00,R&M External Contractors,100,6283,Barcham Trees,100195,04/02/2021,10289802,TC,,,GB215610891,PI,7539.6,44208
INSERTED DETAIL,Communities and Homes,CL Grants,CGS00,Grants To Voluntary Organisations,720,1500,Benn Partnership Centre,100235,25/02/2021,10290887,TC,,,,PN,1500,44244
INSERTED DETAIL,Corporate Resources,Corporate Property R&M,CPA01,R&M External Contractors,100,1057.75,Charles Watts Engineering Ltd,100302,04/02/2021,10290263,TC,,466266,272 7071 59,PN,1269.3,44224
INSERTED DETAIL,Capital Corporate Resources,Corporate Property Enhancements,CPE00,R&M External Contractors,100,8250,Charles Watts Engineering Ltd,100302,04/02/2021,10290264,TC,,466266,272 7071 59,PN,9900,44224
INSERTED DETAIL,Corporate Resources,Corporate Property R&M,CPA01,R&M External Contractors,100,621.5,Charles Watts Engineering Ltd,100302,11/02/2021,10290356,TC,,466266,272 7071 59,PN,745.8,44229
INSERTED DETAIL,Communities and Homes,CAST - Bed & Breakfast,CAS01,Accommodation Charge,146,595,Carlton Hotel & Restaurant,100389,25/02/2021,10291044,TC,,12365448,338990650,PN,595,44249
INSERTED DETAIL,Communities and Homes,Homelessness contingency - COVID,CAS12,Accommodation Charge,146,628.33,Carlton Hotel & Restaurant,100389,25/02/2021,10291046,TC,,12365448,338990650,PN,635,44249
INSERTED DETAIL,Communities and Homes,Homelessness contingency - COVID,CAS12,Accommodation Charge,146,645,Carlton Hotel & Restaurant,100389,25/02/2021,10291047,TC,,12365448,338990650,PN,655,44249
INSERTED DETAIL,Communities and Homes,Homelessness contingency - COVID,CAS12,Accommodation Charge,146,513.33,Carlton Hotel & Restaurant,100389,25/02/2021,10291048,TC,,12365448,338990650,PN,525,44249
INSERTED DETAIL,Communities and Homes,Homelessness contingency - COVID,CAS12,Accommodation Charge,146,513.33,Carlton Hotel & Restaurant,100389,25/02/2021,10291049,TC,,12365448,338990650,PN,525,44249
INSERTED DETAIL,Communities and Homes,Homelessness contingency - COVID,CAS12,Accommodation Charge,146,653.33,Carlton Hotel & Restaurant,100389,25/02/2021,10291050,TC,,12365448,338990650,PN,665,44249
INSERTED DETAIL,Communities and Homes,Homelessness contingency - COVID,CAS12,Accommodation Charge,146,653.33,Carlton Hotel & Restaurant,100389,25/02/2021,10291051,TC,,12365448,338990650,PN,665,44249
INSERTED DETAIL,Communities and Homes,Homelessness contingency - COVID,CAS12,Accommodation Charge,146,513.33,Carlton Hotel & Restaurant,100389,25/02/2021,10291055,TC,,12365448,338990650,PN,525,44249
INSERTED DETAIL,Communities and Homes,Homelessness contingency - COVID,CAS12,Accommodation Charge,146,595,Carlton Hotel & Restaurant,100389,25/02/2021,10291060,TC,,12365448,338990650,PN,595,44249
INSERTED DETAIL,Communities and Homes,Homelessness contingency - COVID,CAS12,Accommodation Charge,146,582.86,Carlton Hotel & Restaurant,100389,25/02/2021,10291065,TC,,12365448,338990650,PN,595,44249
INSERTED DETAIL,Communities and Homes,Homelessness contingency - COVID,CAS12,Accommodation Charge,146,653.33,Carlton Hotel & Restaurant,100389,25/02/2021,10291067,TC,,12365448,338990650,PN,665,44249
INSERTED DETAIL,Communities and Homes,Homelessness contingency - COVID,CAS12,Accommodation Charge,146,595,Carlton Hotel & Restaurant,100389,25/02/2021,10291071,TC,,12365448,338990650,PN,595,44249
INSERTED DETAIL,Communities and Homes,Homelessness contingency - COVID,CAS12,Accommodation Charge,146,513.33,Carlton Hotel & Restaurant,100389,25/02/2021,10291076,TC,,12365448,338990650,PN,525,44249
INSERTED DETAIL,Communities and Homes,Homelessness contingency - COVID,CAS12,Accommodation Charge,146,513.33,Carlton Hotel & Restaurant,100389,25/02/2021,10291079,TC,,12365448,338990650,PN,525,44249
INSERTED DETAIL,Communities and Homes,Homelessness contingency - COVID,CAS12,Accommodation Charge,146,620,Carlton Hotel & Restaurant,100389,25/02/2021,10291082,TC,,12365448,338990650,PN,625,44249
INSERTED DETAIL,Communities and Homes,Homelessness contingency - COVID,CAS12,Accommodation Charge,146,505,Carlton Hotel & Restaurant,100389,25/02/2021,10291086,TC,,12365448,338990650,PN,515,44249
INSERTED DETAIL,Communities and Homes,Homelessness contingency - COVID,CAS12,Accommodation Charge,146,653.33,Carlton Hotel & Restaurant,100389,25/02/2021,10291089,TC,,12365448,338990650,PN,665,44249
INSERTED DETAIL,Communities and Homes,ITC & Support Services,CIS10,Photocopying,354,429.27,Canon (UK) Limited,100514,04/02/2021,10289762,TC,,1264300,523797128,PN,515.12,44207
INSERTED DETAIL,Environment and Public Realm,Domestic Waste Collection/Recycling,REF00,Vehicle Repair and Maintenance,200,998.6,Dennis Eagle Ltd,100559,04/02/2021,10289726,TC,,,272 4968 27,PI,2463.88,44204
INSERTED DETAIL,Environment and Public Realm,Household Green Waste Collections,REF06,Vehicle Repair and Maintenance,200,895.63,Dennis Eagle Ltd,100559,04/02/2021,10289726,TC,,,272 4968 27,PI,2463.88,44204
INSERTED DETAIL,Environment and Public Realm,Trade Waste Collection,WWC01,Vehicle Repair and Maintenance,200,159,Dennis Eagle Ltd,100559,04/02/2021,10289726,TC,,,272 4968 27,PI,2463.88,44204
INSERTED DETAIL,Environment and Public Realm,Domestic Waste Collection/Recycling,REF00,Vehicle Repair and Maintenance,200,399.41,Dennis Eagle Ltd,100559,11/02/2021,10289942,TC,,,272 4968 27,PI,1447.27,44215
INSERTED DETAIL,Environment and Public Realm,Household Green Waste Collections,REF06,Vehicle Repair and Maintenance,200,376.6,Dennis Eagle Ltd,100559,11/02/2021,10289942,TC,,,272 4968 27,PI,1447.27,44215
INSERTED DETAIL,Environment and Public Realm,Trade Waste Collection,WWC01,Vehicle Repair and Maintenance,200,430.05,Dennis Eagle Ltd,100559,11/02/2021,10289942,TC,,,272 4968 27,PI,1447.27,44215
INSERTED DETAIL,Environment and Public Realm,Household Green Waste Collections,REF06,Vehicle Repair and Maintenance,200,676.69,Dennis Eagle Ltd,100559,18/02/2021,10290102,TC,,,272 4968 27,PI,812.03,44221
INSERTED DETAIL,Environment and Public Realm,Trade Waste Collection,WWC01,Vehicle Repair and Maintenance,200,679.13,Dennis Eagle Ltd,100559,25/02/2021,10290513,TC,,,272 4968 27,PI,814.96,44231
INSERTED DETAIL,Environment and Public Realm,Trade Waste Collection,WWC01,Vehicle Repair and Maintenance,200,839.8,Dennis Eagle Ltd,100559,25/02/2021,10290687,TC,,,272 4968 27,PI,1007.76,44237
INSERTED DETAIL,Environment and Public Realm,Domestic Waste Collection/Recycling,REF00,Vehicle Repair and Maintenance,200,4320.18,Dennis Eagle Ltd,100559,25/02/2021,10290689,TC,,,272 4968 27,PI,5184.22,44237
INSERTED DETAIL,Corporate Resources,Corporate Property R&M,CPA01,R&M External Contractors,100,525,Dunchurch Services (Rugby) Ltd,100565,11/02/2021,10290401,CS,,2693688,623535748,PN,630,44229
INSERTED DETAIL,Corporate Resources,Corporate Property R&M,CPA01,R&M External Contractors,100,840,Dunchurch Services (Rugby) Ltd,100565,11/02/2021,10290402,CS,,2693688,623535748,PN,1008,44229
INSERTED DETAIL,Corporate Resources,Corporate Property R&M,CPA01,R&M External Contractors,100,1120,Dunchurch Services (Rugby) Ltd,100565,11/02/2021,10290403,CS,,2693688,623535748,PN,1344,44229
INSERTED DETAIL,Housing Revenue Account,Repairs and Maintenance - Void works,UMR09,R&M External Contractors,100,348.75,Nationwide Windows Ltd,100808,18/02/2021,10290794,CS,,2025613,792405224,PN,1632.95,44239
INSERTED DETAIL,Housing Revenue Account,Void rechargeable repairs,UMR29,R&M External Contractors,100,1012.04,Nationwide Windows Ltd,100808,18/02/2021,10290794,CS,,2025613,792405224,PN,1632.95,44239
INSERTED DETAIL,Environment and Public Realm,Domestic Waste Collection/Recycling,REF00,Vehicle Repair and Maintenance,200,426.05,Ford & Slater Rugby,100817,25/02/2021,10290374,TC,,2495131,565 7608 07,PI,1022.53,44229
INSERTED DETAIL,Environment and Public Realm,Street Cleansing General,STC00,Vehicle Repair and Maintenance,200,213.03,Ford & Slater Rugby,100817,25/02/2021,10290374,TC,,2495131,565 7608 07,PI,1022.53,44229
INSERTED DETAIL,Environment and Public Realm,Trade Waste Collection,WWC01,Vehicle Repair and Maintenance,200,213.03,Ford & Slater Rugby,100817,25/02/2021,10290374,TC,,2495131,565 7608 07,PI,1022.53,44229
INSERTED DETAIL,Environment and Public Realm,Garage,WVR00,Materials,303,1760,Fuchs Lubricants (UK) Plc,100832,18/02/2021,10290065,TC,,2412689,284166443,PI,2112,44217
INSERTED DETAIL,Environment and Public Realm,Garage,WVR00,Materials,303,460,Fuchs Lubricants (UK) Plc,100832,25/02/2021,10290179,TC,,2412689,284166443,PI,552,44222
INSERTED DETAIL,Housing Revenue Account,Supervision and Management General,MAN00,Estates,457,524.37,David Gilkes & Sons Ltd,100913,11/02/2021,10290569,TC,,2006150,418613652,PI,629.26,44232
INSERTED DETAIL,Communities and Homes,COVID-19 Head of Communities and Homes,COV03,New Equipment,300,1344,IE Office Equipment Ltd,101114,04/02/2021,10290309,CS,,,661544339,PI,1612.8,44228
INSERTED DETAIL,Executive Director Office,Borough Elections,ELC00,New Equipment,300,420,IE Office Equipment Ltd,101114,25/02/2021,10290804,CS,,,661544339,PI,504,44242
INSERTED DETAIL,Corporate Resources,Council Tax and NNDR Collection,CTX01,Subscriptions,421,1200,Institute Of Revenues Rating & Valuation,101124,25/02/2021,10291019,TC,,223447,626604544,PI,1440,44249
INSERTED DETAIL,Growth and Investment,Emilie Taylor Exhibition,AGM15,Materials,303,787.05,Melbros Ltd,101291,18/02/2021,10290678,TC,,,420820590,PI,944.46,44236
INSERTED DETAIL,Environment and Public Realm,Grounds Maintenance,PKS20,Materials,303,743.22,Melbros Ltd,101291,25/02/2021,10291010,TC,,,420820590,PI,891.86,44249
INSERTED DETAIL,Communities and Homes,CL Grants,CGS00,Grants To Voluntary Organisations,720,1500,New Bilton Community Association,101389,25/02/2021,10290896,TC,,,,PN,1500,44244
INSERTED DETAIL,Environment and Public Realm,Parks,PKS00,R&M External Contractors,100,512.52,PJT Pumping Services,101438,04/02/2021,10290158,TC,,,618143943,PI,615.02,44222
INSERTED DETAIL,Environment and Public Realm,Sewage Disposal Plant,SDP00,External Contractor & Operator,742,520.28,PJT Pumping Services,101438,04/02/2021,10290160,TC,,,618143943,PI,624.34,44222
INSERTED DETAIL,Environment and Public Realm,COVID-19 Head of Environment and Public Realm,COV04,External Contractor & Operator,742,175,Post To Post Fencing,101490,25/02/2021,10290842,CS,,,7729350133,PI,2220,44243
INSERTED DETAIL,Environment and Public Realm,Parks,PKS00,External Contractor & Operator,742,875,Post To Post Fencing,101490,25/02/2021,10290842,CS,,,7729350133,PI,2220,44243
INSERTED DETAIL,Environment and Public Realm,Section 106 Grounds Maintenance,PKS16,External Contractor & Operator,742,800,Post To Post Fencing,101490,25/02/2021,10290842,CS,,,7729350133,PI,2220,44243
INSERTED DETAIL,Housing Revenue Account,Gas Heating Systems,UMR01,R&M External Contractors,100,340.99,Reeds Plumbing & Heating Contractors Ltd,101504,18/02/2021,10290130,CS,,4468782,418 5847 32,PN,22412.11,44221
INSERTED DETAIL,Housing Revenue Account,Repairs and Maintenance - Void works,UMR09,R&M External Contractors,100,590,Reeds Plumbing & Heating Contractors Ltd,101504,18/02/2021,10290130,CS,,4468782,418 5847 32,PN,22412.11,44221
INSERTED DETAIL,Capital Housing Revenue Account,Bathroom Modifications,HIS01,Capital Contract Payments,5000,12675.55,Reeds Plumbing & Heating Contractors Ltd,101504,18/02/2021,10290130,CS,,4468782,418 5847 32,PN,22412.11,44221
INSERTED DETAIL,Capital Housing Revenue Account,Bathroom Modifications - voids,HIS02,Capital Contract Payments,5000,5070.22,Reeds Plumbing & Heating Contractors Ltd,101504,18/02/2021,10290130,CS,,4468782,418 5847 32,PN,22412.11,44221
INSERTED DETAIL,Housing Revenue Account,Gas Heating Systems,UMR01,R&M External Contractors,100,152.97,Reeds Plumbing & Heating Contractors Ltd,101504,11/02/2021,10290606,CS,,4468782,418 5847 32,PN,9292.49,44235
INSERTED DETAIL,Capital Housing Revenue Account,Kitchen Modifications Voids,HIK11,Capital Contract Payments,5000,2415.55,Reeds Plumbing & Heating Contractors Ltd,101504,11/02/2021,10290606,CS,,4468782,418 5847 32,PN,9292.49,44235
INSERTED DETAIL,Capital Housing Revenue Account,Bathroom Modifications,HIS01,Capital Contract Payments,5000,5070.22,Reeds Plumbing & Heating Contractors Ltd,101504,11/02/2021,10290606,CS,,4468782,418 5847 32,PN,9292.49,44235
INSERTED DETAIL,Capital Housing Revenue Account,Purchase of Council Houses,PUR00,Capital Contract Payments,5000,105,Reeds Plumbing & Heating Contractors Ltd,101504,11/02/2021,10290606,CS,,4468782,418 5847 32,PN,9292.49,44235
INSERTED DETAIL,Housing Revenue Account,Gas Heating Systems,UMR01,R&M External Contractors,100,175,Reeds Plumbing & Heating Contractors Ltd,101504,11/02/2021,10290607,CS,,4468782,418 5847 32,PN,5766,44235
INSERTED DETAIL,Housing Revenue Account,Miscellaneous Unplanned Maintenance and Repair,UMR17,R&M External Contractors,100,430,Reeds Plumbing & Heating Contractors Ltd,101504,11/02/2021,10290607,CS,,4468782,418 5847 32,PN,5766,44235
INSERTED DETAIL,Capital Housing Revenue Account,Disabled Adaptations,HCR01,Capital Contract Payments,5000,4200,Reeds Plumbing & Heating Contractors Ltd,101504,11/02/2021,10290607,CS,,4468782,418 5847 32,PN,5766,44235
INSERTED DETAIL,Communities and Homes,CAST - Private Sector Leasing,CAS03,R&M External Contractors,100,130,Reeds Plumbing & Heating Contractors Ltd,101504,18/02/2021,10290797,CS,,4468782,418 5847 32,PN,2028,44239
INSERTED DETAIL,Housing Revenue Account,Gas Heating Systems,UMR01,R&M External Contractors,100,190,Reeds Plumbing & Heating Contractors Ltd,101504,18/02/2021,10290797,CS,,4468782,418 5847 32,PN,2028,44239
INSERTED DETAIL,Housing Revenue Account,Repairs and Maintenance - Void works,UMR09,R&M External Contractors,100,320,Reeds Plumbing & Heating Contractors Ltd,101504,18/02/2021,10290797,CS,,4468782,418 5847 32,PN,2028,44239
INSERTED DETAIL,Capital Housing Revenue Account,Disabled Adaptations,HCR01,Capital Contract Payments,5000,1050,Reeds Plumbing & Heating Contractors Ltd,101504,18/02/2021,10290797,CS,,4468782,418 5847 32,PN,2028,44239
INSERTED DETAIL,Housing Revenue Account,Gas Heating Systems,UMR01,R&M External Contractors,100,46,Reeds Plumbing & Heating Contractors Ltd,101504,25/02/2021,10290955,CS,,4468782,418 5847 32,PN,18139.73,44244
INSERTED DETAIL,Capital Housing Revenue Account,Disabled Adaptations,HCR01,Capital Contract Payments,5000,4050,Reeds Plumbing & Heating Contractors Ltd,101504,25/02/2021,10290955,CS,,4468782,418 5847 32,PN,18139.73,44244
INSERTED DETAIL,Capital Housing Revenue Account,Bathroom Modifications,HIS01,Capital Contract Payments,5000,10860.44,Reeds Plumbing & Heating Contractors Ltd,101504,25/02/2021,10290955,CS,,4468782,418 5847 32,PN,18139.73,44244
INSERTED DETAIL,Capital Housing Revenue Account,Purchase of Council Houses,PUR00,Capital Contract Payments,5000,160,Reeds Plumbing & Heating Contractors Ltd,101504,25/02/2021,10290955,CS,,4468782,418 5847 32,PN,18139.73,44244
INSERTED DETAIL,Environment and Public Realm,Domestic Waste Collection/Recycling,REF00,Training fees,11,3210,ROSPA T/A Royal Society For The Prevention Of Accidents,101514,04/02/2021,10289879,TC,,231435,655131649,PI,3852,44214
INSERTED DETAIL,Growth and Investment,Building Control Services,BCS00,Postage & Distribution,370,3.64,Royal Mail,101554,11/02/2021,10289905,TC,,,,PN,1923.14,44214
INSERTED DETAIL,Communities and Homes,Community Advice & Support Team,CAS00,Postage & Distribution,370,103.36,Royal Mail,101554,11/02/2021,10289905,TC,,,,PN,1923.14,44214
INSERTED DETAIL,Communities and Homes,Central Business Support Services,CSS15,Postage & Distribution,370,452.79,Royal Mail,101554,11/02/2021,10289905,TC,,,,PN,1923.14,44214
INSERTED DETAIL,Corporate Resources,Council Tax and NNDR Collection,CTX01,Postage & Distribution,370,406.78,Royal Mail,101554,11/02/2021,10289905,TC,,,,PN,1923.14,44214
INSERTED DETAIL,Executive Director Office,Electoral Registration,ERG00,Postage & Distribution,370,195.47,Royal Mail,101554,11/02/2021,10289905,TC,,,,PN,1923.14,44214
INSERTED DETAIL,Housing Revenue Account,Supervision and Management General,MAN00,Postage & Distribution,370,98.87,Royal Mail,101554,11/02/2021,10289905,TC,,,,PN,1923.14,44214
INSERTED DETAIL,Growth and Investment,Planning General/Income,PLN00,Postage & Distribution,370,334.42,Royal Mail,101554,11/02/2021,10289905,TC,,,,PN,1923.14,44214
INSERTED DETAIL,Environment and Public Realm,Domestic Waste Collection/Recycling,REF00,Postage & Distribution,370,0.69,Royal Mail,101554,11/02/2021,10289905,TC,,,,PN,1923.14,44214
INSERTED DETAIL,Environment and Public Realm,Household Green Waste Collections,REF06,Postage & Distribution,370,6.11,Royal Mail,101554,11/02/2021,10289905,TC,,,,PN,1923.14,44214
INSERTED DETAIL,Growth and Investment,Visitor Centre,VSC00,Postage & Distribution,370,1.68,Royal Mail,101554,11/02/2021,10289905,TC,,,,PN,1923.14,44214
INSERTED DETAIL,Growth and Investment,Art Gallery and Museum,AGM00,Postage & Distribution,370,4.83,Royal Mail,101554,25/02/2021,10290380,TC,,,,PN,2328.37,44229
INSERTED DETAIL,Growth and Investment,Building Control Services,BCS00,Postage & Distribution,370,2.74,Royal Mail,101554,25/02/2021,10290380,TC,,,,PN,2328.37,44229
INSERTED DETAIL,Communities and Homes,Community Advice & Support Team,CAS00,Postage & Distribution,370,105.56,Royal Mail,101554,25/02/2021,10290380,TC,,,,PN,2328.37,44229
INSERTED DETAIL,Communities and Homes,Central Business Support Services,CSS15,Postage & Distribution,370,913.23,Royal Mail,101554,25/02/2021,10290380,TC,,,,PN,2328.37,44229
INSERTED DETAIL,Corporate Resources,Council Tax and NNDR Collection,CTX01,Postage & Distribution,370,422.59,Royal Mail,101554,25/02/2021,10290380,TC,,,,PN,2328.37,44229
INSERTED DETAIL,Executive Director Office,Electoral Registration,ERG00,Postage & Distribution,370,79.85,Royal Mail,101554,25/02/2021,10290380,TC,,,,PN,2328.37,44229
INSERTED DETAIL,Housing Revenue Account,Supervision and Management General,MAN00,Postage & Distribution,370,249.69,Royal Mail,101554,25/02/2021,10290380,TC,,,,PN,2328.37,44229
INSERTED DETAIL,Growth and Investment,Planning General/Income,PLN00,Postage & Distribution,370,156.35,Royal Mail,101554,25/02/2021,10290380,TC,,,,PN,2328.37,44229
INSERTED DETAIL,Environment and Public Realm,Domestic Waste Collection/Recycling,REF00,Postage & Distribution,370,0.92,Royal Mail,101554,25/02/2021,10290380,TC,,,,PN,2328.37,44229
INSERTED DETAIL,Environment and Public Realm,Household Green Waste Collections,REF06,Postage & Distribution,370,3.68,Royal Mail,101554,25/02/2021,10290380,TC,,,,PN,2328.37,44229
INSERTED DETAIL,Growth and Investment,Visitor Centre,VSC00,Postage & Distribution,370,3.49,Royal Mail,101554,25/02/2021,10290380,TC,,,,PN,2328.37,44229
INSERTED DETAIL,Environment and Public Realm,Parks,PKS00,Maintenance of Equipment,301,3220,Hags-smp Ltd,101562,18/02/2021,10290707,CS,,908021,GB207853851,PI,3864,44237
INSERTED DETAIL,Housing Revenue Account,Lesley Souter House AP,AGP16,Water Services,143,636.59,Water Plus,101610,18/02/2021,10290786,TC,,4141390,,PN,636.59,44239
INSERTED DETAIL,Corporate Resources,Corporate Property Central Utilities,CPA02,Water Services,143,701.84,Water Plus,101610,18/02/2021,10290855,TC,,4141390,,PN,701.84,44243
INSERTED DETAIL,Housing Revenue Account,Miscellaneous Unplanned Maintenance and Repair,UMR17,R&M External Contractors,100,7038.92,Stannah Stairlifts Ltd,101623,11/02/2021,10290564,TC,,1189799,1401451,PN,8446.7,44231
INSERTED DETAIL,Capital Housing Revenue Account,Bell House Redevelopment,BEL01,Capital Contract Payments,5000,73138.58,Symon Builders Limited,101630,04/02/2021,10290268,CS,,1945068,420820590,PN,73138.58,44224
INSERTED DETAIL,Environment and Public Realm,Grounds Maintenance,PKS20,Materials,303,742.9,Spaldings (UK) Limited,101634,25/02/2021,10290767,TC,,,389 0124 42,PI,891.48,44238
INSERTED DETAIL,Corporate Resources,Corporate Property R&M,CPA01,R&M External Contractors,100,1083.73,Secom Plc,101671,18/02/2021,10290332,TC,,2585807,445838322,PN,1300.47,44228
INSERTED DETAIL,Environment and Public Realm,Domestic Waste Collection/Recycling,REF00,Tyres,205,373,HI-Q Tyreservices,101736,18/02/2021,10290137,TC,,,100159429,PI,1399.64,44221
INSERTED DETAIL,Environment and Public Realm,Household Green Waste Collections,REF06,Tyres,205,501.04,HI-Q Tyreservices,101736,18/02/2021,10290137,TC,,,100159429,PI,1399.64,44221
INSERTED DETAIL,Environment and Public Realm,Trade Waste Collection,WWC01,Tyres,205,292.33,HI-Q Tyreservices,101736,18/02/2021,10290137,TC,,,100159429,PI,1399.64,44221
INSERTED DETAIL,Environment and Public Realm,Domestic Waste Collection/Recycling,REF00,Vehicle Repair and Maintenance,200,274.82,Terberg Matec UK,101761,25/02/2021,10290964,TC,,,560 8785 10,PI,2318.36,44245
INSERTED DETAIL,Environment and Public Realm,Household Green Waste Collections,REF06,Vehicle Repair and Maintenance,200,412.97,Terberg Matec UK,101761,25/02/2021,10290964,TC,,,560 8785 10,PI,2318.36,44245
INSERTED DETAIL,Environment and Public Realm,Trade Waste Collection,WWC01,Vehicle Repair and Maintenance,200,1244.17,Terberg Matec UK,101761,25/02/2021,10290964,TC,,,560 8785 10,PI,2318.36,44245
INSERTED DETAIL,Growth and Investment,Land Charges,LCH00,Consultancy Costs,740,8184.5,Warwickshire County Council,101893,04/02/2021,10289616,TC,,,272426659,PI,9821.4,44202
INSERTED DETAIL,Environment and Public Realm,Safety and Resilience,EPL00,Payments to Other Local Authorities,710,2166,Warwickshire County Council,101893,11/02/2021,10290203,TC,,,272426659,PI,2166,44222
INSERTED DETAIL,Environment and Public Realm,Cemeteries General,CEM00,External Contractor & Operator,742,4000,Warwickshire County Council,101893,11/02/2021,10290573,TC,,,272426659,PI,12538.8,44232
INSERTED DETAIL,Housing Revenue Account,Maintenance of Open Spaces,MOS00,External Contractor & Operator,742,850,Warwickshire County Council,101893,11/02/2021,10290573,TC,,,272426659,PI,12538.8,44232
INSERTED DETAIL,Environment and Public Realm,Parks,PKS00,External Contractor & Operator,742,5599,Warwickshire County Council,101893,11/02/2021,10290573,TC,,,272426659,PI,12538.8,44232
INSERTED DETAIL,Growth and Investment,Economic Development & Town Centre,EDT00,Development Activities,450,11500,Warwickshire County Council,101893,18/02/2021,10290970,TC,,,272426659,PI,11500,44245
INSERTED DETAIL,Capital Housing Revenue Account,Disabled Adaptations,HCR01,Capital Contract Payments,5000,3561.27,Adroit Services Ltd,101939,04/02/2021,10290299,CS,,4729393,812650159,PN,4273.52,44228
INSERTED DETAIL,Capital Housing Revenue Account,Disabled Adaptations,HCR01,Capital Contract Payments,5000,3879.97,Adroit Services Ltd,101939,04/02/2021,10290300,CS,,4729393,812650159,PN,7915.21,44228
INSERTED DETAIL,Capital Housing Revenue Account,Rounds Gardens Capital,RGS00,Capital Compensation Payments,5010,2716.04,Adroit Services Ltd,101939,04/02/2021,10290300,CS,,4729393,812650159,PN,7915.21,44228
INSERTED DETAIL,Capital Housing Revenue Account,Disabled Adaptations,HCR01,Capital Contract Payments,5000,3701.42,Adroit Services Ltd,101939,11/02/2021,10290601,CS,,4729393,812650159,PN,4441.7,44235
INSERTED DETAIL,Capital Housing Revenue Account,Disabled Adaptations,HCR01,Capital Contract Payments,5000,3211.9,Adroit Services Ltd,101939,18/02/2021,10290795,CS,,4729393,812650159,PN,3854.28,44239
INSERTED DETAIL,Environment and Public Realm,Street Cleansing General,STC00,Contract Hire,220,707.14,TJS Self Drive Rugby,107992,04/02/2021,10290317,TC,,1364047,316915651,PI,848.57,44228
INSERTED DETAIL,Environment and Public Realm,Crematorium,CRM00,Medical Referees Fees,413,1702,Dunchurch Surgery,108687,18/02/2021,10290672,TC,,,,PI,1702,44236
INSERTED DETAIL,Environment and Public Realm,Grounds Maintenance,PKS20,Building cleaning,170,25.39,Citron Hygiene UK Ltd,110029,18/02/2021,10290656,TC,,2672361,485679480,PI,1616.16,44236
INSERTED DETAIL,Environment and Public Realm,Domestic Waste Collection/Recycling,REF00,External Contractor & Operator,742,1321.41,Citron Hygiene UK Ltd,110029,18/02/2021,10290656,TC,,2672361,485679480,PI,1616.16,44236
INSERTED DETAIL,Environment and Public Realm,Garage,WVR00,Vehicle Fuel,204,29425.83,Watson Petroleum,110361,18/02/2021,10290115,TC,,,195046059,PI,35311,44221
INSERTED DETAIL,Environment and Public Realm,Garage,WVR00,Vehicle Fuel,204,1112.03,Watson Petroleum,110361,18/02/2021,10290157,TC,,,195046059,PI,1334.43,44222
INSERTED DETAIL,Corporate Resources,Corporate Property R&M,CPA01,R&M External Contractors,100,421.23,Croxford Electrical Ltd,110451,18/02/2021,10290642,CS,,7751876,307 4408 76,PN,505.48,44235
INSERTED DETAIL,Capital Housing Revenue Account,Electrical Upgrages - Community Rooms,HCE35,Capital Contract Payments,5000,1039.11,Croxford Electrical Ltd,110451,25/02/2021,10290889,CS,,7751876,307 4408 76,PN,1246.93,44244
INSERTED DETAIL,Capital Housing Revenue Account,Electrical Upgrages - Community Rooms,HCE35,Capital Contract Payments,5000,1274.73,Croxford Electrical Ltd,110451,25/02/2021,10290890,CS,,7751876,307 4408 76,PN,1529.68,44244
INSERTED DETAIL,Capital Housing Revenue Account,Electrical Upgrages - Community Rooms,HCE35,Capital Contract Payments,5000,1233.01,Croxford Electrical Ltd,110451,25/02/2021,10290891,CS,,7751876,307 4408 76,PN,1479.61,44244
INSERTED DETAIL,Capital Housing Revenue Account,Electrical Upgrages - Community Rooms,HCE35,Capital Contract Payments,5000,1138.85,Croxford Electrical Ltd,110451,25/02/2021,10290892,CS,,7751876,307 4408 76,PN,1366.62,44244
INSERTED DETAIL,Capital Housing Revenue Account,Electrical Upgrages - Community Rooms,HCE35,Capital Contract Payments,5000,963.72,Croxford Electrical Ltd,110451,25/02/2021,10290893,CS,,7751876,307 4408 76,PN,1156.46,44244
INSERTED DETAIL,Capital Housing Revenue Account,Electrical Upgrages - Community Rooms,HCE35,Capital Contract Payments,5000,2141.17,Croxford Electrical Ltd,110451,25/02/2021,10290894,CS,,7751876,307 4408 76,PN,2569.4,44244
INSERTED DETAIL,Corporate Resources,Corporate Property R&M,CPA01,R&M External Contractors,100,872.1,Croxford Electrical Ltd,110451,25/02/2021,10290939,CS,,7751876,307 4408 76,PN,1046.52,44244
INSERTED DETAIL,Growth and Investment,Building Control Services,BCS00,Payments to Other Local Authorities,710,18125.62,Warwick District Council,111228,11/02/2021,10289961,TC,,,273 4289 41,PN,18125.62,44215
INSERTED DETAIL,Environment and Public Realm,Open Spaces Refurbishment - Whinfield Play Area,LEI26,Capital Contract Payments,5000,1772.1,Eibe Play Ltd,112440,25/02/2021,10290199,CS,,,561 2861 44,PI,2126.52,44222
INSERTED DETAIL,Environment and Public Realm,Parks,PKS00,Maintenance of Equipment,301,515.5,Eibe Play Ltd,112440,25/02/2021,10290200,CS,,,561 2861 44,PI,618.6,44222
INSERTED DETAIL,Communities and Homes,Trailblazing Project (Jan 21 to Mar 22),HIP02,Software Maintenance,374,12450,Civica UK Ltd,112724,04/02/2021,10289660,TC,,1628868,391171065,PI,14940,44203
INSERTED DETAIL,Capital Housing Revenue Account,Housing Management System,HCE08,IT Capital Expenditure,5025,7070,Civica UK Ltd,112724,25/02/2021,10290195,TC,,1628868,391171065,PI,8484,44222
INSERTED DETAIL,Environment and Public Realm,Crematorium,CRM00,Purchases for Resale,305,615.6,Teleshore (UK) Ltd,112868,18/02/2021,10290766,TC,,,655 7480 06,PI,738.72,44238
INSERTED DETAIL,Communities and Homes,CL Grants,CGS00,Grants To Voluntary Organisations,720,1500,Newbold on Avon Rugby Football Club,115674,25/02/2021,10290898,NT,,,,PN,1500,44244
INSERTED DETAIL,Environment and Public Realm,Hackney Carriages,HKC00,Subscriptions,421,425,James Button & Co,115779,11/02/2021,10290432,TC,,,659716587,PI,510,44231
INSERTED DETAIL,Environment and Public Realm,WSU Depot,WDP00,New Equipment,300,3000,Valetree Engineering Ltd,120434,11/02/2021,10290439,TC,,4537369,800266862,PI,3600,44231
INSERTED DETAIL,Environment and Public Realm,Regulatory Services,REG00,Maintenance of Equipment,301,928,ANV Measurement System,121280,11/02/2021,10290337,TC,,3549028,706436738,PI,1113.6,44228
INSERTED DETAIL,Capital Housing Revenue Account,Bell House Redevelopment,BEL01,Capital Contract Payments,5000,1017.85,Michael Dyson Associates,121502,11/02/2021,10290560,TC,,2903668,567278204,PN,1221.42,44231
INSERTED DETAIL,Communities and Homes,Maintenance of Customer Services Systems,CIS21,Software Maintenance,374,2491.1,Northgate Public Services (UK)  Ltd,121606,18/02/2021,10289975,TC,,968498,207588545,PI,2989.32,44215
INSERTED DETAIL,Communities and Homes,Central Business Support Services,CSS15,Postage & Distribution,370,-636.79,DX Network Services,121717,25/02/2021,10291022,TC,,,849741385,PN,-764.15,44249
INSERTED DETAIL,Communities and Homes,Central Business Support Services,CSS15,Postage & Distribution,370,1136.79,DX Network Services,121717,25/02/2021,10291023,TC,,,849741385,PI,1364.15,44249
INSERTED DETAIL,Housing Revenue Account,Maintenance of Open Spaces,MOS00,External Contractor & Operator,742,893.8,Brinklow Quarry Ltd,122921,11/02/2021,10290446,TC,,6765411,273163073,PI,1072.56,44231
INSERTED DETAIL,Communities and Homes,ITC & Support Services,CIS10,Hardware Maintenance,376,1746.92,Cable & Wireless/T/A Vodafone,123224,11/02/2021,10289818,TC,,,569953277,PN,2096.3,44208
INSERTED DETAIL,Environment and Public Realm,Street Furniture,LEI22,Capital Contract Payments,5000,5850,Broxap Limited,123396,11/02/2021,10290362,TC,,2583752,592526420,PI,7020,44229
INSERTED DETAIL,Housing Revenue Account,Supervision and Management General,MAN00,Consultancy Costs,740,500,George and Company (Surveyors) Ltd,126668,11/02/2021,10290625,TC,,,984706870,PI,600,44235
INSERTED DETAIL,Communities and Homes,Maintenance of Customer Services Systems,CIS21,Software Maintenance,374,13139.52,Civica Election Services,131623,25/02/2021,10290871,TC,,2263092,236 8689 15,PI,15767.42,44243
INSERTED DETAIL,Environment and Public Realm,Car Parks General,CPK01,Cash Collection,744,904.2,Jade Security Services Ltd,131711,11/02/2021,10290423,TC,,,642505654,PI,1085.04,44230
INSERTED DETAIL,Capital Housing Revenue Account,Rounds Gardens Capital,RGS00,Capital Contract Payments,5000,12850,Challen Commercial Investigations Ltd T/A Ensafe,131876,04/02/2021,10290180,TC,,3426833,669400520,PI,15420,44222
INSERTED DETAIL,Communities and Homes,Cold weather funding,CAS11,Accommodation Charge,146,1190,N Mallidi T/A Park Side Guest House,132033,18/02/2021,10290719,TC,,,,PN,1190,44237
INSERTED DETAIL,Communities and Homes,CAST - Bed & Breakfast,CAS01,Accommodation Charge,146,527,N Mallidi T/A Park Side Guest House,132033,25/02/2021,10290720,TC,,,,PN,527,44237
INSERTED DETAIL,Communities and Homes,Cold weather funding,CAS11,Accommodation Charge,146,663,N Mallidi T/A Park Side Guest House,132033,18/02/2021,10290721,TC,,,,PN,663,44237
INSERTED DETAIL,Communities and Homes,CAST - Bed & Breakfast,CAS01,Accommodation Charge,146,714,N Mallidi T/A Park Side Guest House,132033,18/02/2021,10290722,TC,,,,PN,714,44237
INSERTED DETAIL,Communities and Homes,CAST - Bed & Breakfast,CAS01,Accommodation Charge,146,819,N Mallidi T/A Park Side Guest House,132033,18/02/2021,10290723,TC,,,,PN,819,44237
INSERTED DETAIL,Communities and Homes,CAST - Bed & Breakfast,CAS01,Accommodation Charge,146,525,N Mallidi T/A Park Side Guest House,132033,25/02/2021,10290725,TC,,,,PN,525,44237
INSERTED DETAIL,Communities and Homes,Homelessness contingency - COVID,CAS12,Accommodation Charge,146,525,N Mallidi T/A Park Side Guest House,132033,25/02/2021,10290726,TC,,,,PN,525,44237
INSERTED DETAIL,Communities and Homes,Cold weather funding,CAS11,Accommodation Charge,146,546,N Mallidi T/A Park Side Guest House,132033,25/02/2021,10290945,TC,,,,PN,546,44244
INSERTED DETAIL,Communities and Homes,CAST - Bed & Breakfast,CAS01,Accommodation Charge,146,546,N Mallidi T/A Park Side Guest House,132033,25/02/2021,10290951,TC,,,,PN,546,44244
INSERTED DETAIL,Environment and Public Realm,Parks,PKS00,Contract Hire,220,864,Servicom (High Tech) Ltd,133001,11/02/2021,10290524,TC,,2353848,488168592,PI,1036.8,44231
INSERTED DETAIL,Growth and Investment,Town Centre CCTV and Management,TVM00,Other Agencies,734,22327.6,Rugby First Ltd - BID,133176,11/02/2021,10290406,TC,,,874675571,PI,26793.12,44229
INSERTED DETAIL,Corporate Resources,Corporate Property R&M,CPA01,R&M External Contractors,100,1232.5,Sunfish Services Ltd,133886,18/02/2021,10290647,CS,,,845393893,PN,1531.72,44235
INSERTED DETAIL,Housing Revenue Account,Unplanned Maintenance and Repair,UMR00,R&M External Contractors,100,43.93,Sunfish Services Ltd,133886,18/02/2021,10290647,CS,,,845393893,PN,1531.72,44235
INSERTED DETAIL,Communities and Homes,CL Grants,CGS00,Grants To Voluntary Organisations,720,1500,Brownsover Community Association,135180,18/02/2021,10290886,NT,,,,PN,1500,44244
INSERTED DETAIL,Corporate Resources,Financial Services,RES10,Agency Staff,3,9250,Michael Page International Recruitment Limited,137298,25/02/2021,10290259,TC,,4130921,354 2599 36,PI,11100,44224
INSERTED DETAIL,Capital Housing Revenue Account,Rounds Gardens Capital,RGS00,Capital Contract Payments,5000,3685,Listers Geotechnical Consultants Ltd,138527,04/02/2021,10290233,TC,,6294866,623927628,PI,4422,44224
INSERTED DETAIL,Corporate Resources,Corporate Property Administration,CPA00,Professional Subscriptions,17,539,Personal Redacted Data,139449,11/02/2021,10290384,NT,,,,PN,539,44229
INSERTED DETAIL,Environment and Public Realm,Section 106 Grounds Maintenance,PKS16,External Contractor & Operator,742,4250,D J Whitlock Plant Hire,140156,25/02/2021,10290762,CS,,,833940226,PI,5100,44238
INSERTED DETAIL,Environment and Public Realm,Parks,PKS00,External Contractor & Operator,742,4540,D J Whitlock Plant Hire,140156,18/02/2021,10290763,CS,,,833940226,PI,5448,44238
INSERTED DETAIL,Environment and Public Realm,Parks,PKS00,External Contractor & Operator,742,5720,D J Whitlock Plant Hire,140156,18/02/2021,10290764,CS,,,833940226,PI,6864,44238
INSERTED DETAIL,Communities and Homes,Maintenance of Customer Services Systems,CIS21,Software Maintenance,374,995,Pilat Europe Limited,140464,18/02/2021,10290580,TC,,,,PI,1194,44235
INSERTED DETAIL,Environment and Public Realm,COVID-19 Head of Environment and Public Realm,COV04,External Contractor & Operator,742,1936.39,StoneWall Security Ltd,140775,04/02/2021,10290210,TC,,6587546,937387578,PI,2323.67,44223
INSERTED DETAIL,Housing Revenue Account,Multi-Storey Flats,MSF00,External Contractor & Operator,742,39035.2,StoneWall Security Ltd,140775,11/02/2021,10290438,TC,,6587546,937387578,PI,46842.24,44231
INSERTED DETAIL,Environment and Public Realm,Car Parks General,CPK01,External Contractor & Operator,742,755.2,StoneWall Security Ltd,140775,11/02/2021,10290734,TC,,6587546,937387578,PI,906.24,44237
INSERTED DETAIL,Environment and Public Realm,Cemeteries General,CEM00,External Contractor & Operator,742,71.96,StoneWall Security Ltd,140775,25/02/2021,10290737,TC,,6587546,937387578,PI,2532.31,44238
INSERTED DETAIL,Environment and Public Realm,COVID-19 Head of Environment and Public Realm,COV04,External Contractor & Operator,742,2038.3,StoneWall Security Ltd,140775,25/02/2021,10290737,TC,,6587546,937387578,PI,2532.31,44238
INSERTED DETAIL,Communities and Homes,Broadband & internet,TEL01,Telephone Expenses,371,970.25,Zen Internet Ltd,141612,18/02/2021,10290097,TC,,3101568,686049501,PN,1164.3,44218
INSERTED DETAIL,Environment and Public Realm,Crematorium,CRM00,Telephone Expenses,371,538,Zen Internet Ltd,141612,25/02/2021,10290385,TC,,3101568,686049501,PN,645.6,44229
INSERTED DETAIL,Environment and Public Realm,Crematorium,CRM00,Telephone Expenses,371,538,Zen Internet Ltd,141612,18/02/2021,10290798,TC,,3101568,686049501,PN,645.6,44242
INSERTED DETAIL,Housing Revenue Account,Gas Heating Systems,UMR01,R&M External Contractors,100,780,Certsure LLP,142076,11/02/2021,10290619,TC,,2513162,799123488,PN,936,44235
INSERTED DETAIL,Housing Revenue Account,Sheltered Housing,AGP00,Agency Staff,3,1025.3,Comensura Limited,142471,04/02/2021,10289639,TC,,4085767,755 3211 45,PN,13557.44,44202
INSERTED DETAIL,Housing Revenue Account,Housing Management,MAN22,Agency Staff,3,1377.55,Comensura Limited,142471,04/02/2021,10289639,TC,,4085767,755 3211 45,PN,13557.44,44202
INSERTED DETAIL,Environment and Public Realm,Domestic Waste Collection/Recycling,REF00,Agency Staff,3,7612.16,Comensura Limited,142471,04/02/2021,10289639,TC,,4085767,755 3211 45,PN,13557.44,44202
INSERTED DETAIL,Environment and Public Realm,Street Cleansing General,STC00,Agency Staff,3,1282.78,Comensura Limited,142471,04/02/2021,10289639,TC,,4085767,755 3211 45,PN,13557.44,44202
INSERTED DETAIL,Housing Revenue Account,Sheltered Housing,AGP00,Agency Staff,3,264.14,Comensura Limited,142471,11/02/2021,10289831,TC,,4085767,755 3211 45,PN,15603.62,44209
INSERTED DETAIL,Environment and Public Realm,Crematorium,CRM00,Agency Staff,3,1013.84,Comensura Limited,142471,11/02/2021,10289831,TC,,4085767,755 3211 45,PN,15603.62,44209
INSERTED DETAIL,Housing Revenue Account,Housing Management,MAN22,Agency Staff,3,1349.89,Comensura Limited,142471,11/02/2021,10289831,TC,,4085767,755 3211 45,PN,15603.62,44209
INSERTED DETAIL,Environment and Public Realm,Domestic Waste Collection/Recycling,REF00,Agency Staff,3,6571.54,Comensura Limited,142471,11/02/2021,10289831,TC,,4085767,755 3211 45,PN,15603.62,44209
INSERTED DETAIL,Environment and Public Realm,Street Cleansing General,STC00,Agency Staff,3,465.81,Comensura Limited,142471,11/02/2021,10289831,TC,,4085767,755 3211 45,PN,15603.62,44209
INSERTED DETAIL,Housing Revenue Account,Unplanned Maintenance and Repair,UMR00,Agency Staff,3,3337.77,Comensura Limited,142471,11/02/2021,10289831,TC,,4085767,755 3211 45,PN,15603.62,44209
INSERTED DETAIL,Housing Revenue Account,Sheltered Housing,AGP00,Agency Staff,3,731.09,Comensura Limited,142471,18/02/2021,10290009,TC,,4085767,755 3211 45,PN,18463.32,44216
INSERTED DETAIL,Environment and Public Realm,Crematorium,CRM00,Agency Staff,3,533.6,Comensura Limited,142471,18/02/2021,10290009,TC,,4085767,755 3211 45,PN,18463.32,44216
INSERTED DETAIL,Housing Revenue Account,Housing Management,MAN22,Agency Staff,3,1380.16,Comensura Limited,142471,18/02/2021,10290009,TC,,4085767,755 3211 45,PN,18463.32,44216
INSERTED DETAIL,Environment and Public Realm,Domestic Waste Collection/Recycling,REF00,Agency Staff,3,8520.24,Comensura Limited,142471,18/02/2021,10290009,TC,,4085767,755 3211 45,PN,18463.32,44216
INSERTED DETAIL,Environment and Public Realm,Street Cleansing General,STC00,Agency Staff,3,931.62,Comensura Limited,142471,18/02/2021,10290009,TC,,4085767,755 3211 45,PN,18463.32,44216
INSERTED DETAIL,Housing Revenue Account,Unplanned Maintenance and Repair,UMR00,Agency Staff,3,3289.47,Comensura Limited,142471,18/02/2021,10290009,TC,,4085767,755 3211 45,PN,18463.32,44216
INSERTED DETAIL,Housing Revenue Account,Sheltered Housing,AGP00,Agency Staff,3,1266.88,Comensura Limited,142471,25/02/2021,10290222,TC,,4085767,755 3211 45,PN,17496.13,44223
INSERTED DETAIL,Environment and Public Realm,Crematorium,CRM00,Agency Staff,3,486.91,Comensura Limited,142471,25/02/2021,10290222,TC,,4085767,755 3211 45,PN,17496.13,44223
INSERTED DETAIL,Housing Revenue Account,Housing Management,MAN22,Agency Staff,3,1355.64,Comensura Limited,142471,25/02/2021,10290222,TC,,4085767,755 3211 45,PN,17496.13,44223
INSERTED DETAIL,Environment and Public Realm,Domestic Waste Collection/Recycling,REF00,Agency Staff,3,7734.13,Comensura Limited,142471,25/02/2021,10290222,TC,,4085767,755 3211 45,PN,17496.13,44223
INSERTED DETAIL,Environment and Public Realm,Street Cleansing General,STC00,Agency Staff,3,931.62,Comensura Limited,142471,25/02/2021,10290222,TC,,4085767,755 3211 45,PN,17496.13,44223
INSERTED DETAIL,Housing Revenue Account,Unplanned Maintenance and Repair,UMR00,Agency Staff,3,1330.09,Comensura Limited,142471,25/02/2021,10290222,TC,,4085767,755 3211 45,PN,17496.13,44223
INSERTED DETAIL,Housing Revenue Account,Interim Manager UMR00,UMR50,Agency Staff,3,1474.88,Comensura Limited,142471,25/02/2021,10290222,TC,,4085767,755 3211 45,PN,17496.13,44223
INSERTED DETAIL,Environment and Public Realm,Street Furniture,LEI22,Capital Contract Payments,5000,1010.5,David Ogilvie Engineering Ltd,143891,04/02/2021,10290343,TC,,SC165185,498 7299 60,PI,1212.6,44228
INSERTED DETAIL,Communities and Homes,Community Advice & Support Team,CAS00,Ref. Books Journals & Magazines,353,450,Hbinfo Ltd,144002,11/02/2021,10290353,TC,,,880720227,PI,540,44228
INSERTED DETAIL,Communities and Homes,CL Grants,CGS00,Grants To Voluntary Organisations,720,8250,WCAVA,145040,18/02/2021,10290661,TC,,,,PN,9900,44236
INSERTED DETAIL,Communities and Homes,CL Grants,CGS00,Grants To Voluntary Organisations,720,8250,WCAVA,145040,18/02/2021,10290662,TC,,,,PN,9900,44236
INSERTED DETAIL,Environment and Public Realm,Highways,HIG20,Materials,303,804.27,Midland Rock Leicester Ltd,145830,18/02/2021,10290637,TC,,,913545139,PI,965.12,44235
INSERTED DETAIL,Corporate Resources,Corporate Property Central Utilities,CPA02,Electricity,130,1988.91,Total Gas & Power Ltd,146631,11/02/2021,10289884,TC,,2172239,689638949,PN,2285.73,44214
INSERTED DETAIL,Housing Revenue Account,Sheltered Housing,AGP00,Electricity,130,283.57,Total Gas & Power Ltd,146631,11/02/2021,10289885,TC,,2172239,689638949,PN,11756.32,44214
INSERTED DETAIL,Housing Revenue Account,Alfred Green Close AP,AGP01,Electricity,130,336.9,Total Gas & Power Ltd,146631,11/02/2021,10289885,TC,,2172239,689638949,PN,11756.32,44214
INSERTED DETAIL,Housing Revenue Account,Avon Court AP,AGP02,Electricity,130,73.64,Total Gas & Power Ltd,146631,11/02/2021,10289885,TC,,2172239,689638949,PN,11756.32,44214
INSERTED DETAIL,Housing Revenue Account,Dickinson Court AP,AGP03,Electricity,130,377.8,Total Gas & Power Ltd,146631,11/02/2021,10289885,TC,,2172239,689638949,PN,11756.32,44214
INSERTED DETAIL,Housing Revenue Account,Duffy Place AP,AGP04,Electricity,130,431.5,Total Gas & Power Ltd,146631,11/02/2021,10289885,TC,,2172239,689638949,PN,11756.32,44214
INSERTED DETAIL,Housing Revenue Account,Frederick Press Way AP,AGP06,Electricity,130,675.5,Total Gas & Power Ltd,146631,11/02/2021,10289885,TC,,2172239,689638949,PN,11756.32,44214
INSERTED DETAIL,Housing Revenue Account,John Thwaites Close AP,AGP08,Electricity,130,264.4,Total Gas & Power Ltd,146631,11/02/2021,10289885,TC,,2172239,689638949,PN,11756.32,44214
INSERTED DETAIL,Housing Revenue Account,Mercer Court AP,AGP09,Electricity,130,1012,Total Gas & Power Ltd,146631,11/02/2021,10289885,TC,,2172239,689638949,PN,11756.32,44214
INSERTED DETAIL,Housing Revenue Account,Pettiver Crescent I AP,AGP10,Electricity,130,334.1,Total Gas & Power Ltd,146631,11/02/2021,10289885,TC,,2172239,689638949,PN,11756.32,44214
INSERTED DETAIL,Housing Revenue Account,Robotham Close AP,AGP11,Electricity,130,230.6,Total Gas & Power Ltd,146631,11/02/2021,10289885,TC,,2172239,689638949,PN,11756.32,44214
INSERTED DETAIL,Housing Revenue Account,Stacey Court AP,AGP12,Electricity,130,196.3,Total Gas & Power Ltd,146631,11/02/2021,10289885,TC,,2172239,689638949,PN,11756.32,44214
INSERTED DETAIL,Housing Revenue Account,Stretton Court AP,AGP13,Electricity,130,116.5,Total Gas & Power Ltd,146631,11/02/2021,10289885,TC,,2172239,689638949,PN,11756.32,44214
INSERTED DETAIL,Housing Revenue Account,Sun Street/Windsor Street AP,AGP14,Electricity,130,-56.1,Total Gas & Power Ltd,146631,11/02/2021,10289885,TC,,2172239,689638949,PN,11756.32,44214
INSERTED DETAIL,Housing Revenue Account,Lesley Souter House AP,AGP16,Electricity,130,435.1,Total Gas & Power Ltd,146631,11/02/2021,10289885,TC,,2172239,689638949,PN,11756.32,44214
INSERTED DETAIL,Housing Revenue Account,Tanser Court AP,AGP17,Electricity,130,31.61,Total Gas & Power Ltd,146631,11/02/2021,10289885,TC,,2172239,689638949,PN,11756.32,44214
INSERTED DETAIL,Housing Revenue Account,Edward Court AP,AGP19,Electricity,130,304.5,Total Gas & Power Ltd,146631,11/02/2021,10289885,TC,,2172239,689638949,PN,11756.32,44214
INSERTED DETAIL,Housing Revenue Account,Albert Square AP,AGP20,Electricity,130,64.13,Total Gas & Power Ltd,146631,11/02/2021,10289885,TC,,2172239,689638949,PN,11756.32,44214
INSERTED DETAIL,Housing Revenue Account,Eliot Court AP,AGP25,Electricity,130,90.17,Total Gas & Power Ltd,146631,11/02/2021,10289885,TC,,2172239,689638949,PN,11756.32,44214
INSERTED DETAIL,Housing Revenue Account,Clare Court Site,AGP27,Electricity,130,39.1,Total Gas & Power Ltd,146631,11/02/2021,10289885,TC,,2172239,689638949,PN,11756.32,44214
INSERTED DETAIL,Housing Revenue Account,Alexandra/James Court AP,AGP30,Electricity,130,147.8,Total Gas & Power Ltd,146631,11/02/2021,10289885,TC,,2172239,689638949,PN,11756.32,44214
INSERTED DETAIL,Housing Revenue Account,Hirst Close AP,AGP33,Electricity,130,61.17,Total Gas & Power Ltd,146631,11/02/2021,10289885,TC,,2172239,689638949,PN,11756.32,44214
INSERTED DETAIL,Housing Revenue Account,Assheton Close AP,AGP36,Electricity,130,151.5,Total Gas & Power Ltd,146631,11/02/2021,10289885,TC,,2172239,689638949,PN,11756.32,44214
INSERTED DETAIL,Housing Revenue Account,Bennett Court/Warwick Road AP,AGP38,Electricity,130,13.51,Total Gas & Power Ltd,146631,11/02/2021,10289885,TC,,2172239,689638949,PN,11756.32,44214
INSERTED DETAIL,Housing Revenue Account,Brookside Pailton AP,AGP40,Electricity,130,106.2,Total Gas & Power Ltd,146631,11/02/2021,10289885,TC,,2172239,689638949,PN,11756.32,44214
INSERTED DETAIL,Housing Revenue Account,Clifton Road AP,AGP41,Electricity,130,23.26,Total Gas & Power Ltd,146631,11/02/2021,10289885,TC,,2172239,689638949,PN,11756.32,44214
INSERTED DETAIL,Housing Revenue Account,Deepmore Road/Lytham Road AP,AGP42,Electricity,130,209.8,Total Gas & Power Ltd,146631,11/02/2021,10289885,TC,,2172239,689638949,PN,11756.32,44214
INSERTED DETAIL,Housing Revenue Account,Edmondson Close Dunchurch AP,AGP44,Electricity,130,34.9,Total Gas & Power Ltd,146631,11/02/2021,10289885,TC,,2172239,689638949,PN,11756.32,44214
INSERTED DETAIL,Housing Revenue Account,Featherbed Lane I AP,AGP45,Electricity,130,258.7,Total Gas & Power Ltd,146631,11/02/2021,10289885,TC,,2172239,689638949,PN,11756.32,44214
INSERTED DETAIL,Housing Revenue Account,Fox Close AP,AGP47,Electricity,130,68.15,Total Gas & Power Ltd,146631,11/02/2021,10289885,TC,,2172239,689638949,PN,11756.32,44214
INSERTED DETAIL,Housing Revenue Account,Great Balance Brinklow AP,AGP48,Electricity,130,37.55,Total Gas & Power Ltd,146631,11/02/2021,10289885,TC,,2172239,689638949,PN,11756.32,44214
INSERTED DETAIL,Housing Revenue Account,Jackson Road I AP,AGP53,Electricity,130,34.48,Total Gas & Power Ltd,146631,11/02/2021,10289885,TC,,2172239,689638949,PN,11756.32,44214
INSERTED DETAIL,Housing Revenue Account,Lever Road I AP,AGP57,Electricity,130,247.9,Total Gas & Power Ltd,146631,11/02/2021,10289885,TC,,2172239,689638949,PN,11756.32,44214
INSERTED DETAIL,Housing Revenue Account,Meadow Way/Primrose Court AP,AGP58,Electricity,130,109.4,Total Gas & Power Ltd,146631,11/02/2021,10289885,TC,,2172239,689638949,PN,11756.32,44214
INSERTED DETAIL,Housing Revenue Account,Norman Road AP,AGP60,Electricity,130,17.19,Total Gas & Power Ltd,146631,11/02/2021,10289885,TC,,2172239,689638949,PN,11756.32,44214
INSERTED DETAIL,Housing Revenue Account,Patterdale AP,AGP61,Electricity,130,50.56,Total Gas & Power Ltd,146631,11/02/2021,10289885,TC,,2172239,689638949,PN,11756.32,44214
INSERTED DETAIL,Housing Revenue Account,The Kent AP,AGP67,Electricity,130,-121,Total Gas & Power Ltd,146631,11/02/2021,10289885,TC,,2172239,689638949,PN,11756.32,44214
INSERTED DETAIL,Housing Revenue Account,Victoria Street/Lawford Road AP,AGP68,Electricity,130,19.51,Total Gas & Power Ltd,146631,11/02/2021,10289885,TC,,2172239,689638949,PN,11756.32,44214
INSERTED DETAIL,Housing Revenue Account,Parkfield Road/Lea Crescent AP,AGP71,Electricity,130,102.94,Total Gas & Power Ltd,146631,11/02/2021,10289885,TC,,2172239,689638949,PN,11756.32,44214
INSERTED DETAIL,Housing Revenue Account,Pennington Street/Round Street AP,AGP72,Electricity,130,116.5,Total Gas & Power Ltd,146631,11/02/2021,10289885,TC,,2172239,689638949,PN,11756.32,44214
INSERTED DETAIL,Communities and Homes,CAST - Private Sector Leasing,CAS03,Electricity,130,430.9,Total Gas & Power Ltd,146631,11/02/2021,10289885,TC,,2172239,689638949,PN,11756.32,44214
INSERTED DETAIL,Housing Revenue Account,Control Centre CCTV,CCE01,Electricity,130,476.54,Total Gas & Power Ltd,146631,11/02/2021,10289885,TC,,2172239,689638949,PN,11756.32,44214
INSERTED DETAIL,Housing Revenue Account,Supervision and Management General,MAN00,Electricity,130,147.1,Total Gas & Power Ltd,146631,11/02/2021,10289885,TC,,2172239,689638949,PN,11756.32,44214
INSERTED DETAIL,Housing Revenue Account,Multi-Storey Flats,MSF00,Electricity,130,2452.39,Total Gas & Power Ltd,146631,11/02/2021,10289885,TC,,2172239,689638949,PN,11756.32,44214
INSERTED DETAIL,Communities and Homes,Woodside Park,TVR00,Electricity,130,486.19,Total Gas & Power Ltd,146631,11/02/2021,10289885,TC,,2172239,689638949,PN,11756.32,44214
INSERTED DETAIL,Corporate Resources,Corporate Property Central Utilities,CPA02,Electricity,130,14919.91,Total Gas & Power Ltd,146631,11/02/2021,10289886,TC,,2172239,689638949,PN,20264.48,44214
INSERTED DETAIL,Environment and Public Realm,Crematorium,CRM00,Electricity,130,1679.65,Total Gas & Power Ltd,146631,11/02/2021,10289886,TC,,2172239,689638949,PN,20264.48,44214
INSERTED DETAIL,Housing Revenue Account,Unplanned Maintenance and Repair,UMR00,Electricity,130,310.69,Total Gas & Power Ltd,146631,11/02/2021,10289886,TC,,2172239,689638949,PN,20264.48,44214
INSERTED DETAIL,Housing Revenue Account,Alfred Green Close AP,AGP01,Gas,131,144.34,Total Gas & Power Ltd,146631,11/02/2021,10289915,TC,,2172239,689638949,PN,34175.13,44214
INSERTED DETAIL,Housing Revenue Account,Avon Court AP,AGP02,Gas,131,209.11,Total Gas & Power Ltd,146631,11/02/2021,10289915,TC,,2172239,689638949,PN,34175.13,44214
INSERTED DETAIL,Housing Revenue Account,Dickinson Court AP,AGP03,Gas,131,317.13,Total Gas & Power Ltd,146631,11/02/2021,10289915,TC,,2172239,689638949,PN,34175.13,44214
INSERTED DETAIL,Housing Revenue Account,Duffy Place AP,AGP04,Gas,131,185.16,Total Gas & Power Ltd,146631,11/02/2021,10289915,TC,,2172239,689638949,PN,34175.13,44214
INSERTED DETAIL,Housing Revenue Account,Frederick Press Way AP,AGP06,Gas,131,354.54,Total Gas & Power Ltd,146631,11/02/2021,10289915,TC,,2172239,689638949,PN,34175.13,44214
INSERTED DETAIL,Housing Revenue Account,John Thwaites Close AP,AGP08,Gas,131,193.59,Total Gas & Power Ltd,146631,11/02/2021,10289915,TC,,2172239,689638949,PN,34175.13,44214
INSERTED DETAIL,Housing Revenue Account,Mercer Court AP,AGP09,Gas,131,146.17,Total Gas & Power Ltd,146631,11/02/2021,10289915,TC,,2172239,689638949,PN,34175.13,44214
INSERTED DETAIL,Housing Revenue Account,Pettiver Crescent I AP,AGP10,Gas,131,168.44,Total Gas & Power Ltd,146631,11/02/2021,10289915,TC,,2172239,689638949,PN,34175.13,44214
INSERTED DETAIL,Housing Revenue Account,Robotham Close AP,AGP11,Gas,131,26.23,Total Gas & Power Ltd,146631,11/02/2021,10289915,TC,,2172239,689638949,PN,34175.13,44214
INSERTED DETAIL,Housing Revenue Account,Stacey Court AP,AGP12,Gas,131,238.02,Total Gas & Power Ltd,146631,11/02/2021,10289915,TC,,2172239,689638949,PN,34175.13,44214
INSERTED DETAIL,Housing Revenue Account,Lesley Souter House AP,AGP16,Gas,131,2187.82,Total Gas & Power Ltd,146631,11/02/2021,10289915,TC,,2172239,689638949,PN,34175.13,44214
INSERTED DETAIL,Housing Revenue Account,Tanser Court AP,AGP17,Gas,131,2728.15,Total Gas & Power Ltd,146631,11/02/2021,10289915,TC,,2172239,689638949,PN,34175.13,44214
INSERTED DETAIL,Housing Revenue Account,Albert Square AP,AGP20,Gas,131,3554.5,Total Gas & Power Ltd,146631,11/02/2021,10289915,TC,,2172239,689638949,PN,34175.13,44214
INSERTED DETAIL,Housing Revenue Account,Eliot Court AP,AGP25,Gas,131,178.39,Total Gas & Power Ltd,146631,11/02/2021,10289915,TC,,2172239,689638949,PN,34175.13,44214
INSERTED DETAIL,Housing Revenue Account,Hirst Close AP,AGP33,Gas,131,154.41,Total Gas & Power Ltd,146631,11/02/2021,10289915,TC,,2172239,689638949,PN,34175.13,44214
INSERTED DETAIL,Housing Revenue Account,Edmondson Close Dunchurch AP,AGP44,Gas,131,136.41,Total Gas & Power Ltd,146631,11/02/2021,10289915,TC,,2172239,689638949,PN,34175.13,44214
INSERTED DETAIL,Housing Revenue Account,Harold Cox Place AP,AGP51,Gas,131,62.86,Total Gas & Power Ltd,146631,11/02/2021,10289915,TC,,2172239,689638949,PN,34175.13,44214
INSERTED DETAIL,Corporate Resources,Corporate Property Central Utilities,CPA02,Gas,131,13231.51,Total Gas & Power Ltd,146631,11/02/2021,10289915,TC,,2172239,689638949,PN,34175.13,44214
INSERTED DETAIL,Environment and Public Realm,Crematorium,CRM00,Gas,131,4035.59,Total Gas & Power Ltd,146631,11/02/2021,10289915,TC,,2172239,689638949,PN,34175.13,44214
INSERTED DETAIL,Housing Revenue Account,Unplanned Maintenance and Repair,UMR00,Gas,131,483.05,Total Gas & Power Ltd,146631,11/02/2021,10289915,TC,,2172239,689638949,PN,34175.13,44214
INSERTED DETAIL,Corporate Resources,Corporate Property R&M,CPA01,R&M External Contractors,100,1050,Environmental Essentials Ltd,146842,25/02/2021,10290953,TC,,5097507,844887474,PN,1260,44244
INSERTED DETAIL,Corporate Resources,Retired Employees,RET00,Additional Pension Payments,14,7860.63,WCC Pension Fund,146914,04/02/2021,10290410,NT,,,,PI,7860.63,44229
INSERTED DETAIL,Communities and Homes,Customer Support Services,CSS00,Additional Pension Payments,14,5288.05,WCC Pension Fund,146914,25/02/2021,10290972,NT,,,,PI,5288.05,44245
INSERTED DETAIL,Corporate Resources,Human Resources Centralised Services,RES31,Subscriptions,421,4950,Learning Nexus Ltd,146957,11/02/2021,10290447,TC,,2271707,466441339,PI,5940,44231
INSERTED DETAIL,Housing Revenue Account,Repairs and Maintenance - Void works,UMR09,R&M External Contractors,100,3415,Bell Decorating Group Ltd,147075,11/02/2021,10289934,CS,,SC114142,481234360,PN,4098,44214
INSERTED DETAIL,Housing Revenue Account,Unplanned Maintenance and Repair,UMR00,R&M External Contractors,100,6464.01,Bell Decorating Group Ltd,147075,18/02/2021,10290129,CS,,SC114142,481234360,PN,7756.81,44221
INSERTED DETAIL,Housing Revenue Account,Unplanned Maintenance and Repair,UMR00,R&M External Contractors,100,2603,Bell Decorating Group Ltd,147075,25/02/2021,10290226,CS,,SC114142,481234360,PN,3414,44223
INSERTED DETAIL,Housing Revenue Account,Repainting Schemes,UMR02,R&M External Contractors,100,242,Bell Decorating Group Ltd,147075,25/02/2021,10290226,CS,,SC114142,481234360,PN,3414,44223
INSERTED DETAIL,Corporate Resources,Corporate Property R&M,CPA01,R&M External Contractors,100,5364.41,Arden Construction Ltd,147430,04/02/2021,10290147,CS,,2722631,589378956,PN,6437.29,44222
INSERTED DETAIL,Environment and Public Realm,Grounds Maintenance,PKS20,Vehicle Repair and Maintenance,200,444.96,Tallis Amos Group Limited,147758,11/02/2021,10290364,TC,,,377274127,PI,533.96,44229
INSERTED DETAIL,Environment and Public Realm,Grounds Maintenance,PKS20,Vehicle Repair and Maintenance,200,582.55,Tallis Amos Group Limited,147758,11/02/2021,10290368,TC,,,377274127,PI,699.06,44229
INSERTED DETAIL,Housing Revenue Account,Gas Heating Systems,UMR01,R&M External Contractors,100,364.98,Robert Heath Heating Ltd,148858,04/02/2021,10289722,CS,,1773699,927 4909 89,PN,1728.12,44204
INSERTED DETAIL,Housing Revenue Account,Repairs and Maintenance - Void works,UMR09,R&M External Contractors,100,974.95,Robert Heath Heating Ltd,148858,04/02/2021,10289722,CS,,1773699,927 4909 89,PN,1728.12,44204
INSERTED DETAIL,Housing Revenue Account,Smoke alarm replacements,UMR18,R&M External Contractors,100,100.17,Robert Heath Heating Ltd,148858,04/02/2021,10289722,CS,,1773699,927 4909 89,PN,1728.12,44204
INSERTED DETAIL,Housing Revenue Account,Gas Heating Systems,UMR01,R&M External Contractors,100,27983.03,Robert Heath Heating Ltd,148858,04/02/2021,10289781,CS,,1773699,927 4909 89,PN,33579.64,44208
INSERTED DETAIL,Communities and Homes,CAST - Private Sector Leasing,CAS03,Building cleaning,170,1753.81,Solutions Services,148937,25/02/2021,10290993,TC,,,831753431,PI,2104.58,44246
INSERTED DETAIL,Corporate Resources,Human Resources Centralised Services,RES31,Training fees,11,500,Up Front Training & Coaching,148954,04/02/2021,10290393,TC,,,,PI,500,44229
INSERTED DETAIL,Housing Revenue Account,Miscellaneous Unplanned Maintenance and Repair,UMR17,R&M External Contractors,100,938.3,Arden Health and Safety,149273,04/02/2021,10290128,TC,,,308989648,PN,1125.96,44221
INSERTED DETAIL,Capital Housing Revenue Account,Fire Risk Prevention Works,HCE18,Capital Contract Payments,5000,1535.74,Arden Health and Safety,149273,04/02/2021,10290225,TC,,,308989648,PN,1842.89,44223
INSERTED DETAIL,Environment and Public Realm,Garage,WVR00,Materials,303,737.52,Tom Tom International BV T/A Webfleet,149311,11/02/2021,10290347,TC,,FC031857,273433560,PI,885.02,44228
INSERTED DETAIL,Environment and Public Realm,Highways,HIG20,Materials,303,675,Walter Tipper Ltd,149365,25/02/2021,10290979,TC,,,109302993,PI,810,44245
INSERTED DETAIL,Housing Revenue Account,Miscellaneous Unplanned Maintenance and Repair,UMR17,R&M External Contractors,100,85.9,Close Circuit Security Services Ltd,149426,04/02/2021,10290297,TC,,3543850,695360895,PN,825.84,44228
INSERTED DETAIL,Housing Revenue Account,Control Centre CCTV,CCE01,Maintenance of Equipment,301,602.3,Close Circuit Security Services Ltd,149426,04/02/2021,10290297,TC,,3543850,695360895,PN,825.84,44228
INSERTED DETAIL,Environment and Public Realm,Garage,WVR00,Maintenance of Equipment,301,430.5,Stertil UK Limited,149430,04/02/2021,10290261,TC,,1103855,223567566,PI,516.6,44224
INSERTED DETAIL,Environment and Public Realm,Crematorium,CRM00,Materials,303,1025,Omega Supplies UK Limited,149520,25/02/2021,10289343,TC,,,817578200,PI,2430,44182
INSERTED DETAIL,Environment and Public Realm,Crematorium,CRM00,Personal Protective Equipment,306,1000,Omega Supplies UK Limited,149520,25/02/2021,10289343,TC,,,817578200,PI,2430,44182
INSERTED DETAIL,Environment and Public Realm,Crematorium,CRM00,R&M External Contractors,100,9992.75,Facultatieve Technologies Limited,149571,11/02/2021,10290336,TC,,633222,GB 169 2853 27,PI,11991.3,44228
INSERTED DETAIL,Corporate Resources,Town Hall,OFF00,Materials,303,625.3,Aspli Safety Limited,149611,11/02/2021,10290405,TC,,1387726,184 7500 51,PI,750.36,44229
INSERTED DETAIL,Environment and Public Realm,Crematorium,CRM00,Purchases for Resale,305,1716,Vivedia Ltd,149624,11/02/2021,10290361,TC,,,8830029332,PI,2059.2,44229
INSERTED DETAIL,Environment and Public Realm,Crematorium,CRM00,Organist Fees,414,1816,Personal Redacted Data,149686,04/02/2021,10290304,TC,,,,PI,1816,44228
INSERTED DETAIL,Housing Revenue Account,Repainting Schemes,UMR02,R&M External Contractors,100,6968.05,Alfred Bagnall & Sons (Midlands) Ltd,149699,11/02/2021,10290501,CS,,1042314,179926600,PN,15948.06,44231
INSERTED DETAIL,Housing Revenue Account,Repairs and Maintenance - Void works,UMR09,R&M External Contractors,100,2738,Alfred Bagnall & Sons (Midlands) Ltd,149699,11/02/2021,10290501,CS,,1042314,179926600,PN,15948.06,44231
INSERTED DETAIL,Housing Revenue Account,Repairs and Maintenance - Void works,UMR09,External Contractor & Operator,742,3584,Alfred Bagnall & Sons (Midlands) Ltd,149699,11/02/2021,10290501,CS,,1042314,179926600,PN,15948.06,44231
INSERTED DETAIL,Capital Housing Revenue Account,Heating Upgrades,HIM01,Capital Contract Payments,5000,1104.87,PTS Plumbing,149845,04/02/2021,10289637,TC,,,408556737,PN,1325.85,44202
INSERTED DETAIL,Capital Housing Revenue Account,Heating Upgrades,HIM01,Capital Contract Payments,5000,889.74,PTS Plumbing,149845,11/02/2021,10289827,TC,,,408556737,PN,1067.68,44209
INSERTED DETAIL,Capital Housing Revenue Account,Heating Upgrades,HIM01,Capital Contract Payments,5000,1104.87,PTS Plumbing,149845,11/02/2021,10289828,TC,,,408556737,PN,1325.85,44209
INSERTED DETAIL,Capital Housing Revenue Account,Heating Upgrades,HIM01,Capital Contract Payments,5000,889.74,PTS Plumbing,149845,11/02/2021,10289845,TC,,,408556737,PN,1067.68,44211
INSERTED DETAIL,Capital Housing Revenue Account,Heating Upgrades,HIM01,Capital Contract Payments,5000,1104.87,PTS Plumbing,149845,11/02/2021,10289846,TC,,,408556737,PN,1325.85,44211
INSERTED DETAIL,Capital Housing Revenue Account,Heating Upgrades,HIM01,Capital Contract Payments,5000,889.74,PTS Plumbing,149845,11/02/2021,10289847,TC,,,408556737,PN,1067.68,44211
INSERTED DETAIL,Capital Housing Revenue Account,Heating Upgrades,HIM01,Capital Contract Payments,5000,1104.87,PTS Plumbing,149845,11/02/2021,10289880,TC,,,408556737,PN,1325.85,44214
INSERTED DETAIL,Capital Housing Revenue Account,Heating Upgrades,HIM01,Capital Contract Payments,5000,1104.87,PTS Plumbing,149845,11/02/2021,10289881,TC,,,408556737,PN,1325.85,44214
INSERTED DETAIL,Capital Housing Revenue Account,Heating Upgrades,HIM01,Capital Contract Payments,5000,-1104.87,PTS Plumbing,149845,04/02/2021,10289882,TC,,,408556737,PN,-1325.85,44214
INSERTED DETAIL,Capital Housing Revenue Account,Heating Upgrades,HIM01,Capital Contract Payments,5000,889.74,PTS Plumbing,149845,11/02/2021,10289907,TC,,,408556737,PN,1067.68,44214
INSERTED DETAIL,Capital Housing Revenue Account,Heating Upgrades,HIM01,Capital Contract Payments,5000,889.74,PTS Plumbing,149845,11/02/2021,10289957,TC,,,408556737,PN,1067.68,44215
INSERTED DETAIL,Capital Housing Revenue Account,Heating Upgrades,HIM01,Capital Contract Payments,5000,889.74,PTS Plumbing,149845,11/02/2021,10289958,TC,,,408556737,PN,1067.68,44215
INSERTED DETAIL,Capital Housing Revenue Account,Heating Upgrades,HIM01,Capital Contract Payments,5000,894.43,PTS Plumbing,149845,18/02/2021,10290008,TC,,,408556737,PN,1073.31,44216
INSERTED DETAIL,Capital Housing Revenue Account,Heating Upgrades,HIM01,Capital Contract Payments,5000,1104.87,PTS Plumbing,149845,18/02/2021,10290053,TC,,,408556737,PN,1325.85,44217
INSERTED DETAIL,Capital Housing Revenue Account,Heating Upgrades,HIM01,Capital Contract Payments,5000,889.74,PTS Plumbing,149845,18/02/2021,10290054,TC,,,408556737,PN,1067.68,44217
INSERTED DETAIL,Capital Housing Revenue Account,Heating Upgrades,HIM01,Capital Contract Payments,5000,1104.87,PTS Plumbing,149845,18/02/2021,10290055,TC,,,408556737,PN,1325.85,44217
INSERTED DETAIL,Capital Housing Revenue Account,Heating Upgrades,HIM01,Capital Contract Payments,5000,1104.87,PTS Plumbing,149845,18/02/2021,10290105,TC,,,408556737,PN,1325.85,44221
INSERTED DETAIL,Capital Housing Revenue Account,Heating Upgrades,HIM01,Capital Contract Payments,5000,889.74,PTS Plumbing,149845,18/02/2021,10290106,TC,,,408556737,PN,1067.68,44221
INSERTED DETAIL,Capital Housing Revenue Account,Heating Upgrades,HIM01,Capital Contract Payments,5000,1104.87,PTS Plumbing,149845,18/02/2021,10290107,TC,,,408556737,PN,1325.85,44221
INSERTED DETAIL,Capital Housing Revenue Account,Heating Upgrades,HIM01,Capital Contract Payments,5000,1104.87,PTS Plumbing,149845,18/02/2021,10290108,TC,,,408556737,PN,1325.85,44221
INSERTED DETAIL,Capital Housing Revenue Account,Heating Upgrades,HIM01,Capital Contract Payments,5000,1104.87,PTS Plumbing,149845,18/02/2021,10290109,TC,,,408556737,PN,1325.85,44221
INSERTED DETAIL,Capital Housing Revenue Account,Heating Upgrades,HIM01,Capital Contract Payments,5000,1104.87,PTS Plumbing,149845,18/02/2021,10290110,TC,,,408556737,PN,1325.85,44221
INSERTED DETAIL,Capital Housing Revenue Account,Heating Upgrades,HIM01,Capital Contract Payments,5000,889.74,PTS Plumbing,149845,18/02/2021,10290142,TC,,,408556737,PN,1067.68,44222
INSERTED DETAIL,Capital Housing Revenue Account,Heating Upgrades,HIM01,Capital Contract Payments,5000,930.38,PTS Plumbing,149845,18/02/2021,10290143,TC,,,408556737,PN,1116.45,44222
INSERTED DETAIL,Capital Housing Revenue Account,Heating Upgrades,HIM01,Capital Contract Payments,5000,1104.87,PTS Plumbing,149845,25/02/2021,10290273,TC,,,408556737,PN,1325.85,44225
INSERTED DETAIL,Capital Housing Revenue Account,Heating Upgrades,HIM01,Capital Contract Payments,5000,1104.87,PTS Plumbing,149845,25/02/2021,10290274,TC,,,408556737,PN,1325.85,44225
INSERTED DETAIL,Capital Housing Revenue Account,Heating Upgrades,HIM01,Capital Contract Payments,5000,894.43,PTS Plumbing,149845,25/02/2021,10290275,TC,,,408556737,PN,1073.31,44225
INSERTED DETAIL,Capital Housing Revenue Account,Heating Upgrades,HIM01,Capital Contract Payments,5000,889.74,PTS Plumbing,149845,25/02/2021,10290276,TC,,,408556737,PN,1067.68,44225
INSERTED DETAIL,Capital Housing Revenue Account,Heating Upgrades,HIM01,Capital Contract Payments,5000,1104.87,PTS Plumbing,149845,25/02/2021,10290312,TC,,,408556737,PN,1325.85,44228
INSERTED DETAIL,Capital Housing Revenue Account,Heating Upgrades,HIM01,Capital Contract Payments,5000,889.74,PTS Plumbing,149845,25/02/2021,10290382,TC,,,408556737,PN,1067.68,44229
INSERTED DETAIL,Capital Housing Revenue Account,Heating Upgrades,HIM01,Capital Contract Payments,5000,1104.87,PTS Plumbing,149845,25/02/2021,10290383,TC,,,408556737,PN,1325.85,44229
INSERTED DETAIL,Environment and Public Realm,Memorial Safety,BUR07,Miscellaneous Capital Expenditure,5020,2000,Peter Linsell Management Consultants,149849,11/02/2021,10290352,TC,,,925694000,PI,2400,44228
INSERTED DETAIL,Environment and Public Realm,Cemeteries General,CEM00,Miscellaneous Capital Expenditure,5020,800,Peter Linsell Management Consultants,149849,25/02/2021,10290801,TC,,,925694000,PI,960,44242
INSERTED DETAIL,Housing Revenue Account,Unplanned Maintenance and Repair,UMR00,Signage,151,4030,ID Genie,149858,04/02/2021,10290149,TC,,,998962621,PI,4836,44222
INSERTED DETAIL,Environment and Public Realm,Garage,WVR00,Software Maintenance,374,955,Hickleys Ltd,149944,25/02/2021,10290800,TC,,6443129,925612234,PI,1146,44242
INSERTED DETAIL,Corporate Resources,General Financial Services,GFS00,Consultancy Costs,740,4500,Link Treasury Services Ltd,150056,04/02/2021,10290246,TC,,2652033,GB191 2290 17,PI,5400,44224
INSERTED DETAIL,Corporate Resources,General Financial Services,GFS00,Subscriptions,421,2000,Pixel Financial Management,150199,11/02/2021,10290674,TC,,8161694,164216425,PI,2400,44236
INSERTED DETAIL,Communities and Homes,Maintenance of Customer Services Systems,CIS21,Software Maintenance,374,23917.5,Oneserve Ltd,150556,11/02/2021,10290421,TC,,7387807,104254751,PI,28701,44230
INSERTED DETAIL,Communities and Homes,ITC & Support Services,CIS10,Software/Equipment Licences,379,146476.96,Insight Direct (UK) Ltd,150801,04/02/2021,10289747,TC,,2579852,746075129,PI,175772.34,44207
INSERTED DETAIL,Communities and Homes,ITC & Support Services,CIS10,Software/Equipment Licences,379,11057.76,Insight Direct (UK) Ltd,150801,04/02/2021,10289748,TC,,2579852,746075129,PI,13269.31,44207
INSERTED DETAIL,Communities and Homes,ITC & Support Services,CIS10,Software/Equipment Licences,379,826.11,Insight Direct (UK) Ltd,150801,18/02/2021,10290074,TC,,2579852,746075129,PI,991.33,44218
INSERTED DETAIL,Environment and Public Realm,COVID-19 Head of Environment and Public Realm,COV04,Building cleaning,170,500,Rentokill Initial UK Ltd,150833,25/02/2021,10290409,TC,,301044,209918933,PI,600,44229
INSERTED DETAIL,Housing Revenue Account,Unplanned Maintenance and Repair,UMR00,Vehicle Repair and Maintenance,200,486.68,Webb Ellis Autocentre Ltd,150882,04/02/2021,10290235,TC,,,212752337,PI,584,44224
INSERTED DETAIL,Housing Revenue Account,Lift maintenance,UMR14,R&M External Contractors,100,4523.32,Lift & Engineering Services Ltd,150984,25/02/2021,10290839,TC,,1913516,695967844',PN,5427.98,44243
INSERTED DETAIL,Housing Revenue Account,Lift maintenance,UMR14,R&M External Contractors,100,2261.16,Lift & Engineering Services Ltd,150984,25/02/2021,10290840,TC,,1913516,695967844',PN,2713.39,44243
INSERTED DETAIL,Housing Revenue Account,Lift maintenance,UMR14,R&M External Contractors,100,2261.66,Lift & Engineering Services Ltd,150984,25/02/2021,10290841,TC,,1913516,695967844',PN,2713.99,44243
INSERTED DETAIL,Environment and Public Realm,Grounds Maintenance,PKS20,External Contractor & Operator,742,5900,Glendale Grounds Management Ltd,151025,25/02/2021,10290358,TC,,,203324952,PN,7080,44229
INSERTED DETAIL,Capital Communities and Homes,ICT refresh programme - Infrastructure,CMP01,Software/Equipment Licences,379,2994,PCS Business Systems Ltd,151097,11/02/2021,10290442,TC,,3082062,918599762,PI,3592.8,44231
INSERTED DETAIL,Communities and Homes,CAST - Private Sector Leasing,CAS03,Private Sector Leasing Scheme Properties,148,1785,Hedderwick LLP,151176,04/02/2021,10290292,TC,,,,PN,1785,44228
INSERTED DETAIL,Communities and Homes,CAST - Private Sector Leasing,CAS03,Private Sector Leasing Scheme Properties,148,1904,Hedderwick LLP,151176,04/02/2021,10290294,TC,,,,PN,1904,44228
INSERTED DETAIL,Corporate Resources,Corporate Property R&M,CPA01,R&M External Contractors,100,420,JLA Ltd,151207,27/02/2018,10257173,TC,,1094178,566894869,PN,504,43158
INSERTED DETAIL,Communities and Homes,CAST - Private Sector Leasing,CAS03,Private Sector Leasing Scheme Properties,148,1950,Personal Redacted Data,151216,04/02/2021,10290293,TC,,,,PN,1950,44228
INSERTED DETAIL,Growth and Investment,Art Gallery and Museum,AGM00,Childcare vouchers admin fee,7,0.4,Busy Bees Benefits Ltd,151230,11/02/2021,10290629,NT,,6758298,,PN,789.81,44235
INSERTED DETAIL,Corporate Resources,Legal Services,DEM20,Childcare vouchers admin fee,7,0.4,Busy Bees Benefits Ltd,151230,11/02/2021,10290629,NT,,6758298,,PN,789.81,44235
INSERTED DETAIL,Communities and Homes,Trailblazing Project (Jan 21 to Mar 22),HIP02,Childcare vouchers admin fee,7,2,Busy Bees Benefits Ltd,151230,11/02/2021,10290629,NT,,6758298,,PN,789.81,44235
INSERTED DETAIL,Growth and Investment,Sports and Recreation,LSD03,Childcare vouchers admin fee,7,6,Busy Bees Benefits Ltd,151230,11/02/2021,10290629,NT,,6758298,,PN,789.81,44235
INSERTED DETAIL,Growth and Investment,Planning General/Income,PLN00,Childcare vouchers admin fee,7,4.4,Busy Bees Benefits Ltd,151230,11/02/2021,10290629,NT,,6758298,,PN,789.81,44235
INSERTED DETAIL,Environment and Public Realm,Regulatory Services,REG00,Childcare vouchers admin fee,7,10.12,Busy Bees Benefits Ltd,151230,11/02/2021,10290629,NT,,6758298,,PN,789.81,44235
INSERTED DETAIL,Corporate Resources,Financial Services,RES10,Childcare vouchers admin fee,7,0.8,Busy Bees Benefits Ltd,151230,11/02/2021,10290629,NT,,6758298,,PN,789.81,44235
INSERTED DETAIL,Corporate Resources,Human Resources,RES30,Childcare vouchers admin fee,7,1.2,Busy Bees Benefits Ltd,151230,11/02/2021,10290629,NT,,6758298,,PN,789.81,44235
INSERTED DETAIL,Housing Revenue Account,Unplanned Maintenance and Repair,UMR00,Childcare vouchers admin fee,7,4.43,Busy Bees Benefits Ltd,151230,11/02/2021,10290629,NT,,6758298,,PN,789.81,44235
INSERTED DETAIL,Growth and Investment,Visitor Centre,VSC00,Childcare vouchers admin fee,7,0.4,Busy Bees Benefits Ltd,151230,11/02/2021,10290629,NT,,6758298,,PN,789.81,44235
INSERTED DETAIL,Executive Director Office,Electoral Registration,ERG00,External Printing,352,1126.74,CFH Docmail Ltd,151481,18/02/2021,10290070,TC,,1716891,720978223,PI,1352.09,44218
INSERTED DETAIL,Communities and Homes,CAST - Private Sector Leasing,CAS03,Private Sector Leasing Scheme Properties,148,5168.4,SV Property Ltd,151504,18/02/2021,10290781,TC,,,,PN,5168.4,44239
INSERTED DETAIL,Communities and Homes,Broadband & internet,TEL01,Telephone Expenses,371,842.38,HighSpeed Office Ltd,151543,11/02/2021,10290565,TC,,3935705,766384980,PN,1010.86,44232
INSERTED DETAIL,Growth and Investment,Planning General/Income,PLN00,Consultancy Costs,740,3162.5,Nigel Reeves Planning & Urban Design Ltd,151614,11/02/2021,10290660,TC,,,,PI,3162.5,44236
INSERTED DETAIL,Corporate Resources,Corporate Property R&M,CPA01,R&M External Contractors,100,321.75,VPS (UK) Ltd,151672,11/02/2021,10289819,TC,,4028962,100196072,PI,10777.26,44208
INSERTED DETAIL,Capital Housing Revenue Account,Biart Place - Capital,BIA00,Capital Contract Payments,5000,3907.8,VPS (UK) Ltd,151672,11/02/2021,10289819,TC,,4028962,100196072,PI,10777.26,44208
INSERTED DETAIL,Capital Housing Revenue Account,Garage Site HRA,GAR00,Capital Contract Payments,5000,4751.5,VPS (UK) Ltd,151672,11/02/2021,10289819,TC,,4028962,100196072,PI,10777.26,44208
INSERTED DETAIL,Environment and Public Realm,Section 106 Grounds Maintenance,PKS16,External Contractor & Operator,742,4160,Totally Trees Ltd,151679,11/02/2021,10290434,TC,,4628122,874165894,PI,4992,44231
INSERTED DETAIL,Housing Revenue Account,Repairs and Maintenance - Void works,UMR09,R&M External Contractors,100,2995,Range Cleaning Services Ltd,151748,11/02/2021,10290386,CS,,8939185,189360765,PN,3594,44229
INSERTED DETAIL,Capital Housing Revenue Account,Electrical Upgrages - Community Rooms,HCE35,Capital Contract Payments,5000,16919.52,UK Gas Services Ltd,151764,11/02/2021,10290602,CS,,2976617,974960175,PN,20303.42,44235
INSERTED DETAIL,Capital Housing Revenue Account,Disabled Adaptations,HCR01,Capital Contract Payments,5000,3713.27,UK Gas Services Ltd,151764,11/02/2021,10290604,CS,,2976617,974960175,PN,14805.11,44235
INSERTED DETAIL,Capital Housing Revenue Account,Heating Upgrades,HIM01,Capital Contract Payments,5000,8624.32,UK Gas Services Ltd,151764,11/02/2021,10290604,CS,,2976617,974960175,PN,14805.11,44235
INSERTED DETAIL,Capital Housing Revenue Account,Heating Upgrades,HIM01,Capital Contract Payments,5000,3976.94,UK Gas Services Ltd,151764,18/02/2021,10290796,CS,,2976617,974960175,PN,6032.03,44239
INSERTED DETAIL,Capital Housing Revenue Account,Woodside Park LPG,RNA08,Capital Contract Payments,5000,1049.75,UK Gas Services Ltd,151764,18/02/2021,10290796,CS,,2976617,974960175,PN,6032.03,44239
INSERTED DETAIL,Capital Housing Revenue Account,Heating Upgrades,HIM01,Capital Contract Payments,5000,9769.14,UK Gas Services Ltd,151764,25/02/2021,10290952,CS,,2976617,974960175,PN,11722.97,44244
INSERTED DETAIL,Housing Revenue Account,Electrical Inspections,UMR04,R&M External Contractors,100,5400,UK Gas Services Ltd,151764,25/02/2021,10291031,CS,,2976617,974960175,PN,6480,44249
INSERTED DETAIL,Communities and Homes,CAST - Private Sector Leasing,CAS03,Private Sector Leasing Scheme Properties,148,2490,Personal Redacted Data,151765,25/02/2021,10290834,TC,,,,PN,2490,44243
INSERTED DETAIL,Housing Revenue Account,Control Centre (HRA),CCE00,New Equipment,300,1980,Tunstall Healthcare,151791,25/02/2021,10290209,TC,,1332249,182879709,PI,2376,44223
INSERTED DETAIL,Environment and Public Realm,Garage,WVR00,Maintenance of Equipment,301,713.95,Access Engineering Supplies Ltd,151808,04/02/2021,10290202,TC,,6406682,921692520,PI,856.74,44222
INSERTED DETAIL,Environment and Public Realm,Garage,WVR00,Materials,303,813.96,Volvo Group UK Ltd,151832,04/02/2021,10289606,TC,,2190944,262872148,PI,976.75,44202
INSERTED DETAIL,Corporate Resources,Human Resources Centralised Services,RES31,Recruitment Expenses,12,2595,Growth Hub Business Solutions,151836,11/02/2021,10290360,TC,,10369498,66928359,PI,3114,44229
INSERTED DETAIL,Corporate Resources,Human Resources Centralised Services,RES31,Recruitment Expenses,12,2695,Growth Hub Business Solutions,151836,11/02/2021,10290363,TC,,10369498,66928359,PI,3234,44229
INSERTED DETAIL,Corporate Resources,Human Resources Centralised Services,RES31,Recruitment Expenses,12,820,Growth Hub Business Solutions,151836,18/02/2021,10290705,TC,,10369498,66928359,PI,984,44237
INSERTED DETAIL,Corporate Resources,Human Resources Centralised Services,RES31,Employee wellbeing/Other employee expenses,21,820,Growth Hub Business Solutions,151836,18/02/2021,10290730,TC,,10369498,66928359,PI,984,44237
INSERTED DETAIL,Corporate Resources,Corporate Property R&M,CPA01,R&M External Contractors,100,476,Integrated Water Services Ltd,151890,11/02/2021,10290599,TC,,5283349,918455404,PN,571.2,44235
INSERTED DETAIL,Housing Revenue Account,Control Centre (HRA),CCE00,New Equipment,300,1980,Telealarm Europe Gmbh,151943,04/02/2021,10290231,TC,,,23212107883,PI,1980,44224
INSERTED DETAIL,Housing Revenue Account,Control Centre (HRA),CCE00,New Equipment,300,2500,Telealarm Europe Gmbh,151943,18/02/2021,10290658,TC,,,23212107883,PI,2500,44236
INSERTED DETAIL,Communities and Homes,CAST - Private Sector Leasing,CAS03,Private Sector Leasing Scheme Properties,148,1575,Personal Redacted Data,151978,18/02/2021,10290702,TC,,,,PN,1575,44237
INSERTED DETAIL,Communities and Homes,CAST - Private Sector Leasing,CAS03,Private Sector Leasing Scheme Properties,148,1730,Personal Redacted Data,151978,16/02/2021,10290833,TC,,,,PN,1730,44243
INSERTED DETAIL,Communities and Homes,Nightly Paid Self Contained Accommodation,CAS07,Nightly Self Contained Accommodation,149,2015,Centennial Property T/A The Housing Network,152075,11/02/2021,10290377,TC,,8861768,,PI,2418,44229
INSERTED DETAIL,Communities and Homes,CAST - Private Sector Leasing,CAS03,Private Sector Leasing Scheme Properties,148,2175,Personal Redacted Data,152221,11/02/2021,10290495,TC,,,,PN,2175,44231
INSERTED DETAIL,Communities and Homes,CL Grants,CGS00,Grants To Voluntary Organisations,720,1500,Long Lawford Community Association,152236,18/02/2021,10290895,NT,,,,PN,1500,44244
INSERTED DETAIL,Capital Communities and Homes,ICT refresh programme - Infrastructure,CMP01,Consultancy Costs,740,490,Eurotech Computer Services Ltd,152271,11/02/2021,10290522,TC,,3746274,724721250,PI,588,44228
INSERTED DETAIL,Capital Communities and Homes,ICT refresh programme - Infrastructure,CMP01,Consultancy Costs,740,2060,Eurotech Computer Services Ltd,152271,11/02/2021,10290523,TC,,3746274,724721250,PI,2824.8,44231
INSERTED DETAIL,Capital Communities and Homes,ICT refresh programme - Infrastructure,CMP01,IT Capital Expenditure,5025,294,Eurotech Computer Services Ltd,152271,11/02/2021,10290523,TC,,3746274,724721250,PI,2824.8,44231
INSERTED DETAIL,Growth and Investment,Development Strategy,ECD00,Borough Local Plan,452,4624.8,Pinsent Masons LLP,152281,11/02/2021,10290570,TC,,OC333653,25463034,PI,5549.76,44232
INSERTED DETAIL,Corporate Resources,Corporate Property Administration,CPA00,Conference & Seminar Fees,401,270,Government Events,152397,11/02/2021,10290526,TC,,11295320,292790662,PI,648,44231
INSERTED DETAIL,Executive Director Office,Executive Director,SMT00,Conference & Seminar Fees,401,270,Government Events,152397,11/02/2021,10290526,TC,,11295320,292790662,PI,648,44231
INSERTED DETAIL,Environment and Public Realm,Street Cleansing General,STC00,Materials,303,1137.17,Compass Minerals UK Ltd,152416,11/02/2021,10290518,TC,,2654529,595803600,PI,1364.6,44231
INSERTED DETAIL,Corporate Resources,Human Resources Centralised Services,RES31,Employee wellbeing/Other employee expenses,21,700,Washington House Occupational Health Ltd,152478,04/02/2021,10290141,TC,,7576248,113264844,PN,700,44222
INSERTED DETAIL,Corporate Resources,Human Resources Centralised Services,RES31,Employee wellbeing/Other employee expenses,21,2545,Washington House Occupational Health Ltd,152478,25/02/2021,10290381,TC,,7576248,113264844,PN,2545,44229
INSERTED DETAIL,Corporate Resources,Human Resources Centralised Services,RES31,Recruitment Expenses,12,716.67,Washington House Occupational Health Ltd,152478,18/02/2021,10290650,TC,,7576248,113264844,PN,860,44236
INSERTED DETAIL,Housing Revenue Account,Unplanned Maintenance and Repair,UMR00,Contract Hire,220,520,Jetchem Systems Ltd,152529,18/02/2021,10290684,TC,,2636413,560555542,PI,624,44237
INSERTED DETAIL,Environment and Public Realm,Domestic Waste Collection/Recycling,REF00,External Contractor & Operator,742,67507.68,GAE Holdings T/A Casepak,152573,25/02/2021,10290659,TC,,1075198,115128407,PI,81009.22,44236
INSERTED DETAIL,Communities and Homes,CAST - Private Sector Leasing,CAS03,Private Sector Leasing Scheme Properties,148,2250,Personal Redacted Data,152664,18/02/2021,10290651,TC,,,,PN,2250,44236
INSERTED DETAIL,Environment and Public Realm,Domestic Waste Collection/Recycling,REF00,External Contractor & Operator,742,1575,Bulk Freight (Midlands) Ltd,152736,04/02/2021,10290133,TC,,2099724,439397896,PI,1890,44221
INSERTED DETAIL,Environment and Public Realm,Domestic Waste Collection/Recycling,REF00,External Contractor & Operator,742,720,Bulk Freight (Midlands) Ltd,152736,04/02/2021,10290134,TC,,2099724,439397896,PI,864,44221
INSERTED DETAIL,Environment and Public Realm,Domestic Waste Collection/Recycling,REF00,External Contractor & Operator,742,2275,Bulk Freight (Midlands) Ltd,152736,04/02/2021,10290135,TC,,2099724,439397896,PI,2730,44221
INSERTED DETAIL,Environment and Public Realm,Domestic Waste Collection/Recycling,REF00,External Contractor & Operator,742,2100,Bulk Freight (Midlands) Ltd,152736,11/02/2021,10290394,TC,,2099724,439397896,PI,2520,44229
INSERTED DETAIL,Environment and Public Realm,Domestic Waste Collection/Recycling,REF00,External Contractor & Operator,742,1225,Bulk Freight (Midlands) Ltd,152736,18/02/2021,10290682,TC,,2099724,439397896,PI,1470,44236
INSERTED DETAIL,Environment and Public Realm,Domestic Waste Collection/Recycling,REF00,External Contractor & Operator,742,1650,Bulk Freight (Midlands) Ltd,152736,18/02/2021,10290683,TC,,2099724,439397896,PI,1980,44236
INSERTED DETAIL,Environment and Public Realm,Domestic Waste Collection/Recycling,REF00,External Contractor & Operator,742,2400,Bulk Freight (Midlands) Ltd,152736,25/02/2021,10290861,TC,,2099724,439397896,PI,2880,44243
INSERTED DETAIL,Capital Housing Revenue Account,Rounds Gardens Capital,RGS00,Capital Contract Payments,5000,12500,David R Boyne Property Solutions Ltd,152751,18/02/2021,10290748,TC,,6531216,985702484,PN,15000,44238
INSERTED DETAIL,Environment and Public Realm,Grounds Maintenance,PKS20,Materials,303,504.4,CPA Horticulture Ltd,152791,25/02/2021,10289801,TC,,4436862,793932189,PI,605.28,44208
INSERTED DETAIL,Environment and Public Realm,Grounds Maintenance,PKS20,Materials,303,507,CPA Horticulture Ltd,152791,25/02/2021,10290422,TC,,4436862,793932189,PI,608.4,44230
INSERTED DETAIL,Capital Housing Revenue Account,RBC Holding Ltd,HOL00,Consultancy Costs,740,1743.75,ARK Consultancy,152820,18/02/2021,10290770,TC,,10179621,618135745,PI,2092.5,44238
INSERTED DETAIL,Capital Housing Revenue Account,Biart Place Demolition,BIA01,Capital Contract Payments,5000,274000,Frank O'Gara & Sons Ltd,152840,18/02/2021,10290411,TC,,,759368671,PN,328800,44230
INSERTED DETAIL,Capital Housing Revenue Account,Biart Place Demolition,BIA01,Capital Contract Payments,5000,11330,Frank O'Gara & Sons Ltd,152840,25/02/2021,10290987,TC,,,759368671,PI,13596,44245
INSERTED DETAIL,Communities and Homes,Mobile telephones,TEL03,Telephone Expenses,371,2637.3,Daisy Communications,152877,04/02/2021,10289689,TC,,4145329,722471355,PN,3164.76,44204
INSERTED DETAIL,Housing Revenue Account,Housing Management,MAN22,External Legal Costs,741,650,Clarke Willmott LLP,152901,04/02/2021,10290244,TC,,,129913060,PI,780,44224
INSERTED DETAIL,Communities and Homes,ITC & Support Services,CIS10,Hardware Maintenance,376,449.82,Crown Hosting Data Centres,152919,11/02/2021,10290355,TC,,,207000375,PN,539.78,44229
INSERTED DETAIL,Communities and Homes,CAST - Private Sector Leasing,CAS03,Private Sector Leasing Scheme Properties,148,1575,Personal Redacted Data,152952,25/02/2021,10290858,TC,,,,PN,1575,44243
INSERTED DETAIL,Growth and Investment,Emilie Taylor Exhibition,AGM15,Other Miscellaneous Expenses,444,713.34,Personal Redacted Data,152984,11/02/2021,10290440,TC,,,,PI,713.34,44231
INSERTED DETAIL,Growth and Investment,Hall of Fame,TRY00,New Equipment,300,1512,Total Computer Networks Ltd,153004,04/02/2021,10290307,TC,,4958126,824507830,PI,1814.4,44228
INSERTED DETAIL,Capital Communities and Homes,ICT Renewal Programme,CMP00,IT Capital Expenditure,5025,4272,Total Computer Networks Ltd,153004,11/02/2021,10290437,TC,,4958126,824507830,PI,5126.4,44231
INSERTED DETAIL,Capital Communities and Homes,ICT Renewal Programme,CMP00,IT Capital Expenditure,5025,2136,Total Computer Networks Ltd,153004,18/02/2021,10290635,TC,,4958126,824507830,PI,2563.2,44235
INSERTED DETAIL,Capital Communities and Homes,ICT Renewal Programme,CMP00,IT Capital Expenditure,5025,1392,Total Computer Networks Ltd,153004,18/02/2021,10290715,TC,,4958126,824507830,PI,1670.4,44237
INSERTED DETAIL,Capital Communities and Homes,ICT Renewal Programme,CMP00,IT Capital Expenditure,5025,5944,Total Computer Networks Ltd,153004,18/02/2021,10290784,TC,,4958126,824507830,PI,7132.8,44239
INSERTED DETAIL,Environment and Public Realm,Garage,WVR00,Maintenance of Equipment,301,922.37,Midland Garage Equipment (Sales) Ltd,153018,18/02/2021,10290709,TC,,,,PI,1106.84,44237
INSERTED DETAIL,Capital Housing Revenue Account,Rounds Gardens Capital,RGS00,Capital Compensation Payments,5010,520,JD Removals,153289,25/02/2021,10290883,TC,,,,PI,520,44243
INSERTED DETAIL,Capital Housing Revenue Account,Rounds Gardens Capital,RGS00,Capital Compensation Payments,5010,520,JD Removals,153289,25/02/2021,10290962,TC,,,,PI,520,44245
INSERTED DETAIL,Communities and Homes,CAST - Private Sector Leasing,CAS03,Private Sector Leasing Scheme Properties,148,2250,Personal Redacted Data,153330,18/02/2021,10290832,NT,,,,PN,2250,44243
INSERTED DETAIL,Capital Housing Revenue Account,Rounds Gardens Capital,RGS00,Capital Compensation Payments,5010,6114.76,Personal Redacted Data,153460,25/02/2021,10291261,NT,,,,PN,6114.76,44251
INSERTED DETAIL,Environment and Public Realm,Domestic Waste Collection/Recycling,REF00,Personal Protective Equipment,306,576,Lee Atkins Ltd T/A Autosmart,153462,11/02/2021,10290441,TC,,9309281,200644849,PI,691.2,44231
INSERTED DETAIL,Capital Housing Revenue Account,Rounds Gardens Capital,RGS00,Capital Compensation Payments,5010,6109.8,Personal Redacted Data,153471,18/02/2021,10290831,NT,,,,PN,6109.8,44243
INSERTED DETAIL,Communities and Homes,CAST - Private Sector Leasing,CAS03,Private Sector Leasing Scheme Properties,148,2250,Personal Redacted Data,153479,25/02/2021,10290835,TC,,,,PN,2250,44243
INSERTED DETAIL,Capital Housing Revenue Account,Rounds Gardens Capital,RGS00,Capital Compensation Payments,5010,6077.88,Personal Redacted Data,153481,04/02/2021,10290248,NT,,,,PN,6077.88,44224
INSERTED DETAIL,Corporate Resources,Financial Services,RES10,Agency Staff,3,1485,Robert Walters Operations Ltd,153482,25/02/2021,10290316,TC,,3621607,927577481,PI,1782,44228
INSERTED DETAIL,Environment and Public Realm,Parks,PKS00,Consultancy Costs,740,2250,Dams & Reservoirs Ltd,153505,11/02/2021,10290528,TC,,,6843542,PI,2700,44231
INSERTED DETAIL,Capital Housing Revenue Account,Rounds Gardens Capital,RGS00,Capital Compensation Payments,5010,5775.34,Personal Redacted Data,153510,04/02/2021,10290491,NT,,,,PN,5775.34,44231
INSERTED DETAIL,Environment and Public Realm,Whitehall Recreation Ground,LEI23,Capital Contract Payments,5000,36767.09,Canvas Spaces Ltd,153511,04/02/2021,10290284,CS,,8723592,172517216,PN,44120.51,44228
INSERTED DETAIL,Capital Housing Revenue Account,Rounds Gardens Capital,RGS00,Capital Compensation Payments,5010,6110.56,Personal Redacted Data,153514,04/02/2021,10290251,NT,,,,PN,6110.56,44224
INSERTED DETAIL,Capital Housing Revenue Account,Rounds Gardens Capital,RGS00,Capital Compensation Payments,5010,6412.47,Personal Redacted Data,153517,04/02/2021,10290252,NT,,,,PN,6412.47,44224
INSERTED DETAIL,Growth and Investment,Town Centre Recovery,TWN01,Development Activities,450,12000,Shopappy Ltd,153616,04/02/2021,10290257,TC,,10285855,249889137,PI,14400,44224
INSERTED DETAIL,Growth and Investment,Economic Development & Town Centre,EDT00,Photographic Expenses,355,5000,Shakespeare's England Ltd,153617,11/02/2021,10290527,TC,,8243229,170097613,PI,6000,44231
INSERTED DETAIL,Capital Environment and Public Realm,Purchase of Vehicles,VHC00,Capital Contract Payments,5000,15295,Knightcott Motors,153620,04/02/2021,10290232,TC,,,303025813,PI,18354,44224
INSERTED DETAIL,Capital Housing Revenue Account,Finlock Gutter Improvements,HCE24,Capital Contract Payments,5000,3520,Adeft Services Ltd,153656,18/02/2021,10290859,CS,,10538592,281448980,PN,4224,44243
INSERTED DETAIL,Capital Housing Revenue Account,Finlock Gutter Improvements,HCE24,Capital Contract Payments,5000,3520,Adeft Services Ltd,153656,18/02/2021,10290860,CS,,10538592,281448980,PN,4224,44243
INSERTED DETAIL,Capital Housing Revenue Account,Rounds Gardens Capital,RGS00,Capital Compensation Payments,5010,5876.96,Personal Redacted Data,153667,18/02/2021,10290747,NT,,,,PN,5876.96,44238
INSERTED DETAIL,Environment and Public Realm,Regulatory Services,REG00,External Contractor & Operator,742,468.58,PDK Trading Ltd,153680,25/02/2021,10291216,TC,,,,PI,562.29,44250
INSERTED DETAIL,Capital Housing Revenue Account,Rounds Gardens Capital,RGS00,Capital Contract Payments,5000,513.98,Bulb Energy,153684,18/02/2021,10290314,TC,,,,PN,517.37,44228
INSERTED DETAIL,Capital Housing Revenue Account,Rounds Gardens Capital,RGS00,Capital Compensation Payments,5010,1500,Personal Redacted Data,153686,04/02/2021,10290359,NT,,,,PN,1500,44229
INSERTED DETAIL,Capital Growth and Investment,AGM purchases of artwork,ART00,Capital Contract Payments,5000,32000,Maureen Paley Ltd,153688,11/02/2021,10290521,TC,,2921350,648771395,PI,38400,44231
INSERTED DETAIL,Executive Director Office,Executive Director,SMT00,Conference & Seminar Fees,401,3500,Connect Public Affairs Ltd,153712,25/02/2021,10291276,TC,,3449749,7017342745,PI,4200,44252
INSERTED DETAIL,Environment and Public Realm,Regulatory Services,REG00,External Legal Costs,741,600,Personal Redacted Data,153719,25/02/2021,10290741,TC,,,,PI,720,44238
INSERTED DETAIL,Housing Revenue Account,Supervision and Management General,MAN00,Consultancy Costs,740,2450,No5 Chambers Collection,153730,25/02/2021,10290901,TC,,2727465,,PI,2940,44244
INSERTED DETAIL,Growth and Investment,Planning General/Income,PLN00,External Legal Costs,741,600,No5 Chambers Collection,153730,25/02/2021,10290989,TC,,2727465,,PI,720,44246
INSERTED DETAIL,Capital Housing Revenue Account,Rounds Gardens Capital,RGS00,Capital Compensation Payments,5010,1500,Personal Redacted Data,153731,18/02/2021,10290857,NT,,,,PN,1500,44243
INSERTED DETAIL,Capital Housing Revenue Account,Rounds Gardens Capital,RGS00,Capital Compensation Payments,5010,1500,Personal Redacted Data,153745,25/02/2021,10291178,NT,,,,PN,1500,44250
detail,Capital Housing Revenue Account,Rounds Gardens Capital,RGS00,Capital Compensation Payments,5010,7650.48,Personal Redacted Data,153748,25/02/2021,10291197,NT,,,,PN,7650.48,44250
,Executive Director Office,"Communications, Consultation and Information Team",BTR20,Publicity & Marketing,377,530.9,Facebook,,16/02/2021,54108,,,,,,,
,Housing Revenue Account,Unplanned Maintenance and Repair,UMR00,New Equipment,300,592.5,Promain,,16/02/2021,54108,,,,,,,
,Communities and Homes,Rough Sleeper Initiative,CAS10,New Equipment,300,570,Rugby Domestics,,23/02/2021,54132,,,,,,,
,Communities and Homes,Homelessness contingency - COVID,CAS12,Accommodation Charge,146,11330,The Carlton Hotel,,01/02/2021,,,,,,,,
,Outside portfolio expenditure,Balance Sheet,BS,Test and Trace Support,9215,500,Personal Redacted Data,,01/02/2021,,,,,,,,
,Outside portfolio expenditure,Balance Sheet,BS,Test and Trace Support,9215,500,Personal Redacted Data,,01/02/2021,,,,,,,,
,Outside portfolio expenditure,Balance Sheet,BS,Test and Trace Support,9215,500,Personal Redacted Data,,01/02/2021,,,,,,,,
,Communities and Homes,Homelessness Prevention,CAS06,Rent In Advance,137,636,Citizen Housing Group,,02/02/2021,,,,,,,,
,Outside portfolio expenditure,Balance Sheet,BS,Test and Trace Support,9215,500,Personal Redacted Data,,02/02/2021,,,,,,,,
,Outside portfolio expenditure,Balance Sheet,BS,Test and Trace Support,9215,500,Personal Redacted Data,,02/02/2021,,,,,,,,
,Outside portfolio expenditure,Balance Sheet,BS,Test and Trace Support,9215,500,Personal Redacted Data,,02/02/2021,,,,,,,,
,Outside portfolio expenditure,Balance Sheet,BS,Test and Trace Support,9215,500,Personal Redacted Data,,02/02/2021,,,,,,,,
,Outside portfolio expenditure,Balance Sheet,BS,Test and Trace Support,9215,500,Personal Redacted Data,,02/02/2021,,,,,,,,
,Outside portfolio expenditure,Balance Sheet,BS,Test and Trace Support,9215,500,Personal Redacted Data,,03/02/2021,,,,,,,,
,Outside portfolio expenditure,Balance Sheet,BS,Test and Trace Support,9215,500,Personal Redacted Data,,03/02/2021,,,,,,,,
,Capital Housing Revenue Account,Rounds Gardens Capital,RGS00,Capital Compensation Payments,5010,1750,Personal Redacted Data,,04/02/2021,,,,,,,,
,Outside portfolio expenditure,Balance Sheet,BS,Test and Trace Support,9215,500,Personal Redacted Data,,04/02/2021,,,,,,,,
,Outside portfolio expenditure,Balance Sheet,BS,Test and Trace Support,9215,500,Personal Redacted Data,,04/02/2021,,,,,,,,
,Outside portfolio expenditure,Balance Sheet,BS,Test and Trace Support,9215,500,Personal Redacted Data,,04/02/2021,,,,,,,,
,Outside portfolio expenditure,Balance Sheet,BS,Test and Trace Support,9215,500,Personal Redacted Data,,04/02/2021,,,,,,,,
,Outside portfolio expenditure,Balance Sheet,BS,Test and Trace Support,9215,500,Personal Redacted Data,,04/02/2021,,,,,,,,
,Outside portfolio expenditure,Balance Sheet,BS,Test and Trace Support,9215,500,Personal Redacted Data,,04/02/2021,,,,,,,,
,Outside portfolio expenditure,Balance Sheet,BS,Test and Trace Support,9215,500,Personal Redacted Data,,04/02/2021,,,,,,,,
,Outside portfolio expenditure,Balance Sheet,BS,Test and Trace Support,9215,500,Personal Redacted Data,,05/02/2021,,,,,,,,
,Outside portfolio expenditure,Balance Sheet,BS,Test and Trace Support,9215,500,Personal Redacted Data,,05/02/2021,,,,,,,,
,Outside portfolio expenditure,Balance Sheet,BS,Test and Trace Support,9215,500,Personal Redacted Data,,05/02/2021,,,,,,,,
,Outside portfolio expenditure,Balance Sheet,BS,Test and Trace Support,9215,500,Personal Redacted Data,,09/02/2021,,,,,,,,
,Outside portfolio expenditure,Balance Sheet,BS,Test and Trace Support,9215,500,Personal Redacted Data,,09/02/2021,,,,,,,,
,Outside portfolio expenditure,Balance Sheet,BS,Test and Trace Support,9215,500,Personal Redacted Data,,09/02/2021,,,,,,,,
,Outside portfolio expenditure,Balance Sheet,BS,Test and Trace Support,9215,500,Personal Redacted Data,,09/02/2021,,,,,,,,
,Outside portfolio expenditure,Balance Sheet,BS,Test and Trace Support,9215,500,Personal Redacted Data,,09/02/2021,,,,,,,,
,Communities and Homes,CAST - Private Sector Leasing,CAS03,Private Sector Leasing Scheme Properties,148,875,Personal Redacted Data,,10/02/2021,,,,,,,,
,Outside portfolio expenditure,Balance Sheet,BS,Test and Trace Support,9215,500,Personal Redacted Data,,10/02/2021,,,,,,,,
,Outside portfolio expenditure,Balance Sheet,BS,Test and Trace Support,9215,500,Personal Redacted Data,,10/02/2021,,,,,,,,
,Outside portfolio expenditure,Balance Sheet,BS,Test and Trace Support,9215,500,Personal Redacted Data,,11/02/2021,,,,,,,,
,Outside portfolio expenditure,Balance Sheet,BS,Test and Trace Support,9215,500,Personal Redacted Data,,11/02/2021,,,,,,,,
,Outside portfolio expenditure,Balance Sheet,BS,Test and Trace Support,9215,500,Personal Redacted Data,,12/02/2021,,,,,,,,
,Outside portfolio expenditure,Balance Sheet,BS,Test and Trace Support,9215,500,Personal Redacted Data,,12/02/2021,,,,,,,,
,Outside portfolio expenditure,Balance Sheet,BS,Test and Trace Support,9215,500,Personal Redacted Data,,12/02/2021,,,,,,,,
,Outside portfolio expenditure,Balance Sheet,BS,Test and Trace Support,9215,500,Personal Redacted Data,,12/02/2021,,,,,,,,
,Outside portfolio expenditure,Balance Sheet,BS,Test and Trace Support,9215,500,Personal Redacted Data,,12/02/2021,,,,,,,,
,Outside portfolio expenditure,Balance Sheet,BS,Test and Trace Support,9215,500,Personal Redacted Data,,12/02/2021,,,,,,,,
,Capital Housing Revenue Account,Purchase of Council Houses,PUR00,Capital Contract Payments,5000,7506,HMRC  ,,16/02/2021,,,,,,,,
,Outside portfolio expenditure,Balance Sheet,BS,Test and Trace Support,9215,500,Personal Redacted Data,,16/02/2021,,,,,,,,
,Outside portfolio expenditure,Balance Sheet,BS,Test and Trace Support,9215,500,Personal Redacted Data,,16/02/2021,,,,,,,,
,Outside portfolio expenditure,Balance Sheet,BS,Test and Trace Support,9215,500,Personal Redacted Data,,17/02/2021,,,,,,,,
,Outside portfolio expenditure,Balance Sheet,BS,Test and Trace Support,9215,500,Personal Redacted Data,,17/02/2021,,,,,,,,
,Outside portfolio expenditure,Balance Sheet,BS,Test and Trace Support,9215,500,Personal Redacted Data,,18/02/2021,,,,,,,,
,Outside portfolio expenditure,Balance Sheet,BS,Test and Trace Support,9215,500,Personal Redacted Data,,18/02/2021,,,,,,,,
,Outside portfolio expenditure,Balance Sheet,BS,Test and Trace Support,9215,500,Personal Redacted Data,,18/02/2021,,,,,,,,
,Outside portfolio expenditure,Balance Sheet,BS,Test and Trace Support,9215,500,Personal Redacted Data,,18/02/2021,,,,,,,,
,Outside portfolio expenditure,Balance Sheet,BS,Collection Fund,9476,1061800,Cov & Warks pooling  ,,19/02/2021,,,,,,,,
,Outside portfolio expenditure,Balance Sheet,BS,Test and Trace Support,9215,500,Personal Redacted Data,,19/02/2021,,,,,,,,
,Outside portfolio expenditure,Balance Sheet,BS,Test and Trace Support,9215,500,Personal Redacted Data,,19/02/2021,,,,,,,,
,Outside portfolio expenditure,Balance Sheet,BS,Test and Trace Support,9215,500,Personal Redacted Data,,19/02/2021,,,,,,,,
,Outside portfolio expenditure,Balance Sheet,BS,Collection Fund,9476,3178546,DCLG  ,,22/02/2021,,,,,,,,
,Outside portfolio expenditure,Balance Sheet,BS,Collection Fund,9476,399541,WCC County Fund  ,,22/02/2021,,,,,,,,
,Communities and Homes,Maintenance of Customer Services Systems,CIS21,Software Maintenance,374,754.59,Bottomline  ,,22/02/2021,,,,,,,,
,Outside portfolio expenditure,Balance Sheet,BS,Test and Trace Support,9215,500,Personal Redacted Data,,23/02/2021,,,,,,,,
,Outside portfolio expenditure,Balance Sheet,BS,Test and Trace Support,9215,500,Personal Redacted Data,,23/02/2021,,,,,,,,
,Corporate Resources,General Financial Services,GFS00,Payment Card Costs,445,3696.75,Capita  ,,24/02/2021,,,,,,,,
,Outside portfolio expenditure,Balance Sheet,BS,Test and Trace Support,9215,500,Personal Redacted Data,,24/02/2021,,,,,,,,
,Outside portfolio expenditure,Balance Sheet,BS,Test and Trace Support,9215,500,Personal Redacted Data,,24/02/2021,,,,,,,,
,Corporate Resources,GF - Taxation and Non,CRA03,Business Rates Income,2401,2031471,Cov & Warks pooling  ,,25/02/2021,,,,,,,,
,Capital Housing Revenue Account,Purchase of Council Houses,PUR00,Capital Contract Payments,5000,168534,Premier Property Lawyers Ltd,,25/02/2021,,,,,,,,
,Communities and Homes,Homelessness Prevention,CAS06,Rent In Advance,137,900,Personal Redacted Data,,25/02/2021,,,,,,,,
,Communities and Homes,Maintenance of Customer Services Systems,CIS21,Software Maintenance,374,8118.3,MHR  ,,26/02/2021,,,,,,,,
,Outside portfolio expenditure,Balance Sheet,BS,Test and Trace Support,9215,500,Personal Redacted Data,,26/02/2021,,,,,,,,
,Outside portfolio expenditure,Balance Sheet,BS,Test and Trace Support,9215,500,Personal Redacted Data,,26/02/2021,,,,,,,,
